SERVICE_CODE,ORGANISATION_UNIT,EXPENDITURE_CATEGORY,EXPENDITURE_DESCRIPTION,EXPENDITURE_CODE,NARRATIVE,DATE,TRANSATION_CODE,NET_AMOUNT,SUPPLIER_CODE,SUPPLIER_NAME,FROM_DATE,TO_DATE,FINANCIAL_PERIOD_YEAR
R&B,HUMAN RESOURCES,EMPLOYEES,TRAINING EXPENSES,1305,P121628-SERVICE-VOLUNTEER LUNCH,20/4/2023 00:00:00,273232,260.75,SH0256,SHARRONS EVENT CATERING COMPANY LTD,04/01/2023 00:00,30/4/2023 00:00:00,P01-2024
R&B,CORPORATE TRAINING,EMPLOYEES,TRAINING EXPENSES,1305,P121246-SERVICE-C CARTER 1ST AID COURSE 18-20/04/23,04/01/2023 00:00,272323,419,BR0069,BRITISH RED CROSS,04/01/2023 00:00,30/4/2023 00:00:00,P01-2024
R&B,CORPORATE TRAINING,EMPLOYEES,TRAINING EXPENSES,1305,P121246-SERVICE-C CARTER 1ST AID COURSE 18-20/04/23,04/05/2023 00:00,272810,-419,BR0069,BRITISH RED CROSS,04/01/2023 00:00,30/4/2023 00:00:00,P01-2024
R&B,CORPORATE TRAINING,EMPLOYEES,TRAINING EXPENSES,1305,P121426-SERVICE-CIPPS PAYROLL TRAINING L READ 5/6/04/23,17/4/2023 00:00:00,273037,250,VI0074,VINE HR LIMITED,04/01/2023 00:00,30/4/2023 00:00:00,P01-2024
R&B,CORPORATE TRAINING,EMPLOYEES,TRAINING EXPENSES,1305,P121386-SERVICE-S REES & J MANTON FAW COURSE 24/05/2023,30/4/2023 00:00:00,273423,349,BR0069,BRITISH RED CROSS,04/01/2023 00:00,30/4/2023 00:00:00,P01-2024
R&B,CORPORATE TRAINING,EMPLOYEES,TRAINING EXPENSES,1305,P121386-SERVICE-S REES & J MANTON FAW COURSE 24/05/2023,30/4/2023 00:00:00,273541,349,BR0069,BRITISH RED CROSS,04/01/2023 00:00,30/4/2023 00:00:00,P01-2024
R&B,CORPORATE TRAINING,EMPLOYEES,TRAINING EXPENSES,1305,P121733-SERVICE-L NORTH 1ST AID TRAINING 22-24 MAY 23,30/4/2023 00:00:00,273542,419,BR0069,BRITISH RED CROSS,04/01/2023 00:00,30/4/2023 00:00:00,P01-2024
,LEE VALLEY MARINA SPRINGFIELD,EMPLOYEES,TRAINING EXPENSES,1305,P120993-SERVICE-PROFES-TRA-CTS-001 Training - Single Day (At,18/4/2023 00:00:00,273018,422.5,CY0653,CYBERTILL,04/01/2023 00:00,30/4/2023 00:00:00,P01-2024
,LEE VALLEY MARINA STANSTEAD,EMPLOYEES,TRAINING EXPENSES,1305,P120993-SERVICE-PROFES-TRA-CTS-001 Training - Single Day,18/4/2023 00:00:00,273018,422.5,CY0653,CYBERTILL,04/01/2023 00:00,30/4/2023 00:00:00,P01-2024
,LEE VALLEY CAMPSITE,EMPLOYEES,TRAINING EXPENSES,1305,P121465-SERVICE-SC Staff Customer Service Training,04/11/2023 00:00,272921,408.33,YO0040,YOUR SUCCESS SOLUTIONS,04/01/2023 00:00,30/4/2023 00:00:00,P01-2024
,LEE VALLEY CAMPSITE,EMPLOYEES,TRAINING EXPENSES,1305,P121448-SERVICE-Chainsaw Training  D Bates,20/4/2023 00:00:00,273033,460,GR0457,GROUND UP TRAINING LTD,04/01/2023 00:00,30/4/2023 00:00:00,P01-2024
,LEE VALLEY CAMPSITE,EMPLOYEES,TRAINING EXPENSES,1305,P121448-SERVICE-Equipment Hire,20/4/2023 00:00:00,273033,65,GR0457,GROUND UP TRAINING LTD,04/01/2023 00:00,30/4/2023 00:00:00,P01-2024
,LEE VALLEY CARAVAN PARK,EMPLOYEES,TRAINING EXPENSES,1305,P121465-SERVICE-DW Staff Customer Service Training,04/11/2023 00:00,272921,408.33,YO0040,YOUR SUCCESS SOLUTIONS,04/01/2023 00:00,30/4/2023 00:00:00,P01-2024
,LV LEISURE CENTRE CAMPSITE,EMPLOYEES,TRAINING EXPENSES,1305,P121465-SERVICE-EC Staff Customer Service Training,04/11/2023 00:00,272921,408.34,YO0040,YOUR SUCCESS SOLUTIONS,04/01/2023 00:00,30/4/2023 00:00:00,P01-2024
R&B,CORPORATE TRAINING,EMPLOYEES,APPRENTICE LEVY,1390,HMRC,17/4/2023 00:00:00,272952,809,HM0368,HMRC,04/01/2023 00:00,30/4/2023 00:00:00,P01-2024
,LEE VALLEY CAMPSITE,PREMISES RELATED EXPENDITURE,CONTRACT CLEANING,2120,P121607-SERVICE-26/4/23 - 25/05/23,20/4/2023 00:00:00,272966,88.25,IN0012,INITIAL WASHROOM HYGIENE,04/01/2023 00:00,30/4/2023 00:00:00,P01-2024
,LEE VALLEY CARAVAN PARK,PREMISES RELATED EXPENDITURE,CONTRACT CLEANING,2120,P121538-SERVICE-Washroom Hygiene,04/11/2023 00:00,272343,93.28,IN0012,INITIAL WASHROOM HYGIENE,04/01/2023 00:00,30/4/2023 00:00:00,P01-2024
,LEE VALLEY CARAVAN PARK,PREMISES RELATED EXPENDITURE,CONTRACT CLEANING,2120,P121706-SERVICE-Washrooms hygiene,25/4/2023 00:00:00,273322,93.28,IN0012,INITIAL WASHROOM HYGIENE,04/01/2023 00:00,30/4/2023 00:00:00,P01-2024
,LV LEISURE CENTRE CAMPSITE,PREMISES RELATED EXPENDITURE,CONTRACT CLEANING,2120,P121762-SERVICE-Site cleaning,30/4/2023 00:00:00,273365,2036,LI0305,LIMPIAR CLEANING,04/01/2023 00:00,30/4/2023 00:00:00,P01-2024
,LEE VALLEY CAMPSITE,PREMISES RELATED EXPENDITURE,LINEN SERVICE,2122,P121642-SERVICE-April 23,30/4/2023 00:00:00,273537,300,JO0168,JOHNSONS STALBRIDGE LINEN SERVICES,04/01/2023 00:00,30/4/2023 00:00:00,P01-2024
,LEE VALLEY CAMPSITE,PREMISES RELATED EXPENDITURE,LINEN SERVICE,2122,P121642-SERVICE-May 23,30/4/2023 00:00:00,273537,44.94,JO0168,JOHNSONS STALBRIDGE LINEN SERVICES,04/01/2023 00:00,30/4/2023 00:00:00,P01-2024
,LEE VALLEY CARAVAN PARK,PREMISES RELATED EXPENDITURE,LINEN SERVICE,2122,P121777-SERVICE-Linen service,30/4/2023 00:00:00,273538,877.22,JO0168,JOHNSONS STALBRIDGE LINEN SERVICES,04/01/2023 00:00,30/4/2023 00:00:00,P01-2024
P&V,ABBEY GARDENS,PREMISES RELATED EXPENDITURE,GM ARBORICULTURE UNSCHEDULED,2146,P120737-SERVICE-Tree Works at Waltham Abbey Gardens,25/4/2023 00:00:00,273382,5975,VE0004,PRINCIPAL TREES LTD,04/01/2023 00:00,30/4/2023 00:00:00,P01-2024
P&V,SOUTH AREA RANGERS,PREMISES RELATED EXPENDITURE,GM NON MAIN CONT UNSCHEDULED,2147,P121526-SERVICE-Repair Metal Bollard at Riding Centre,30/4/2023 00:00:00,273411,240,RE0094,REACT 2 IT (BUILDING & REFURBISHMENT) LTD,04/01/2023 00:00,30/4/2023 00:00:00,P01-2024
P&V,RIVER LEE COUNTRY PARK,PREMISES RELATED EXPENDITURE,HABITAT MANAGEMENT WORKS,2149,P121093-SERVICE-Vegetation Clearance at Hooks Marsh,17/4/2023 00:00:00,273137,650,AQ0410,AQUAMAINTAIN LTD,04/01/2023 00:00,30/4/2023 00:00:00,P01-2024
P&V,RIVER LEE COUNTRY PARK,PREMISES RELATED EXPENDITURE,HABITAT MANAGEMENT WORKS,2149,P120970-SERVICE-Tern Raft Maintenance at Seventy Acres,17/4/2023 00:00:00,273138,650,AQ0410,AQUAMAINTAIN LTD,04/01/2023 00:00,30/4/2023 00:00:00,P01-2024
P&V,RIVER LEE COUNTRY PARK,PREMISES RELATED EXPENDITURE,HABITAT MANAGEMENT WORKS,2149,P120970-SERVICE-Tern Raft Maintenance Materials,17/4/2023 00:00:00,273138,230,AQ0410,AQUAMAINTAIN LTD,04/01/2023 00:00,30/4/2023 00:00:00,P01-2024
P&V,NORTH AREA RANGERS,PREMISES RELATED EXPENDITURE,GENERAL WASTE,2211,P121577-SERVICE-Deep Litter Pick at Glen Faba Fisherman's Car,25/4/2023 00:00:00,273378,546.33,GL0214,GLENDALE GROUNDS MANAGEMENT LIMITED,04/01/2023 00:00,30/4/2023 00:00:00,P01-2024
P&V,SOUTH AREA RANGERS,PREMISES RELATED EXPENDITURE,GENERAL WASTE,2211,P121714-SERVICE-Skip at WaterWorks Centre,25/4/2023 00:00:00,273380,323.4,GB0239,GBN SERVICES LTD,04/01/2023 00:00,30/4/2023 00:00:00,P01-2024
P&V,RIVER LEE COUNTRY PARK,PREMISES RELATED EXPENDITURE,GENERAL WASTE,2211,P120786-SERVICE-12yd General Rubbish Skip at Holyfield Hall F,18/4/2023 00:00:00,273212,323.4,GB0239,GBN SERVICES LTD,04/01/2023 00:00,30/4/2023 00:00:00,P01-2024
P&V,RIVER LEE COUNTRY PARK,PREMISES RELATED EXPENDITURE,GENERAL WASTE,2211,P121689-SERVICE-12yd General Rubbish Skip at Holyfield Hall F,30/4/2023 00:00:00,273536,323.4,GB0239,GBN SERVICES LTD,04/01/2023 00:00,30/4/2023 00:00:00,P01-2024
P&V,MYDDELTON HOUSE,PREMISES RELATED EXPENDITURE,BUILDING SERVICE AGREEMENTS,2220,P120982-SERVICE-Sanitary Services,04/01/2023 00:00,272336,80.68,PE0015,PHS GROUP PLC,04/01/2023 00:00,30/4/2023 00:00:00,P01-2024
P&V,MYDDELTON HOUSE,PREMISES RELATED EXPENDITURE,BUILDING SERVICE AGREEMENTS,2220,P120982-SERVICE-Sanitary Services,04/01/2023 00:00,272516,190.23,PE0015,PHS GROUP PLC,04/01/2023 00:00,30/4/2023 00:00:00,P01-2024
P&V,MYDDELTON HOUSE,PREMISES RELATED EXPENDITURE,BUILDING SERVICE AGREEMENTS,2220,P119876-SERVICE-Sanitary Services,04/01/2023 00:00,272559,24.15,PE0015,PHS GROUP PLC,04/01/2023 00:00,30/4/2023 00:00:00,P01-2024
P&V,MYDDELTON HOUSE,PREMISES RELATED EXPENDITURE,BUILDING SERVICE AGREEMENTS,2220,P120982-SERVICE-Sanitary Services,04/01/2023 00:00,272560,9.09,PE0015,PHS GROUP PLC,04/01/2023 00:00,30/4/2023 00:00:00,P01-2024
P&V,MYDDELTON HOUSE,PREMISES RELATED EXPENDITURE,BUILDING SERVICE AGREEMENTS,2220,P121586-SERVICE-Maintenance & Monitoring of Intruder Alarm 04,17/4/2023 00:00:00,272932,2264.55,AD0015,ADT FIRE & SECURITY PLC,04/01/2023 00:00,30/4/2023 00:00:00,P01-2024
P&V,MYDDELTON HOUSE,PREMISES RELATED EXPENDITURE,BUILDING SERVICE AGREEMENTS,2220,P121587-SERVICE-Maintenance of Fire Alarm 04/23-03/24,17/4/2023 00:00:00,272933,4125.55,AD0015,ADT FIRE & SECURITY PLC,04/01/2023 00:00,30/4/2023 00:00:00,P01-2024
P&V,MYDDELTON HOUSE,PREMISES RELATED EXPENDITURE,BUILDING SERVICE AGREEMENTS,2220,P120591-SERVICE-Repair Gardens Disabled Toilet Door,17/4/2023 00:00:00,272962,154.2,RE0094,REACT 2 IT (BUILDING & REFURBISHMENT) LTD,04/01/2023 00:00,30/4/2023 00:00:00,P01-2024
P&V,MYDDELTON HOUSE,PREMISES RELATED EXPENDITURE,BUILDING SERVICE AGREEMENTS,2220,P121602-SERVICE-Work on Fire System 03/04/23,17/4/2023 00:00:00,273045,572,AD0015,ADT FIRE & SECURITY PLC,04/01/2023 00:00,30/4/2023 00:00:00,P01-2024
,LEE VALLEY MARINA SPRINGFIELD,PREMISES RELATED EXPENDITURE,BUILDING SERVICE AGREEMENTS,2220,"P121662-SERVICE-Sanitary Disposal,Dust Mats,Eco Shield",18/4/2023 00:00:00,272338,216.54,PE0015,PHS GROUP PLC,04/01/2023 00:00,30/4/2023 00:00:00,P01-2024
,LEE VALLEY MARINA SPRINGFIELD,PREMISES RELATED EXPENDITURE,BUILDING SERVICE AGREEMENTS,2220,P121661-SERVICE-Fire Alarm maintenance for 1-4-23 to 31-3-23,18/4/2023 00:00:00,272934,433.17,AD0015,ADT FIRE & SECURITY PLC,04/01/2023 00:00,30/4/2023 00:00:00,P01-2024
,LEE VALLEY MARINA SPRINGFIELD,PREMISES RELATED EXPENDITURE,BUILDING SERVICE AGREEMENTS,2220,P121658-SERVICE-Annual maintenance 2 vists & Adhoc,25/4/2023 00:00:00,273316,1300,DE0013,DENNIS SECURITY CENTRE,04/01/2023 00:00,30/4/2023 00:00:00,P01-2024
P&V,LEE VALLEY FARM HOLYFIELDHALL,PREMISES RELATED EXPENDITURE,BUILDING SERVICE AGREEMENTS,2220,P121697-SERVICE-12 Month Gatekepper,25/4/2023 00:00:00,273163,543,FA0040,FARMPLAN COMPUTER SYSTEMS,04/01/2023 00:00,30/4/2023 00:00:00,P01-2024
,LEE VALLEY CAMPSITE,PREMISES RELATED EXPENDITURE,BUILDING SERVICE AGREEMENTS,2220,P121067-SERVICE-Annual cover 01/04/23 01/03/24,04/06/2023 00:00,272721,151.03,AC0012,SCUTUM SOUTH EAST LTD (frmly Active Security),04/01/2023 00:00,30/4/2023 00:00:00,P01-2024
,LEE VALLEY CAMPSITE,PREMISES RELATED EXPENDITURE,BUILDING SERVICE AGREEMENTS,2220,P121533-SERVICE-Intruder Alarm Monitori 23/24,04/11/2023 00:00,272722,151.03,AC0012,SCUTUM SOUTH EAST LTD (frmly Active Security),04/01/2023 00:00,30/4/2023 00:00:00,P01-2024
,LEE VALLEY CAMPSITE,PREMISES RELATED EXPENDITURE,BUILDING SERVICE AGREEMENTS,2220,P119632-SERVICE-Mar 23,30/4/2023 00:00:00,273400,70,VE0006,VERMINATE CITY & RURAL PEST CONTROL LTD,04/01/2023 00:00,30/4/2023 00:00:00,P01-2024
,LEE VALLEY CARAVAN PARK,PREMISES RELATED EXPENDITURE,BUILDING SERVICE AGREEMENTS,2220,P121773-SERVICE-Monthly pest control,30/4/2023 00:00:00,273399,70,VE0006,VERMINATE CITY & RURAL PEST CONTROL LTD,04/01/2023 00:00,30/4/2023 00:00:00,P01-2024
P&V,NORTH AREA RANGERS,PREMISES RELATED EXPENDITURE,BUILDING SERVICE AGREEMENTS,2220,P121023-SERVICE-Sanitary Disposal - Old Mill & Meadows Toilet,04/03/2023 00:00,272337,3.74,PE0015,PHS GROUP PLC,04/01/2023 00:00,30/4/2023 00:00:00,P01-2024
P&V,GUNPOWDER PARK,PREMISES RELATED EXPENDITURE,BUILDING SERVICE AGREEMENTS,2220,P121072-SERVICE-Sanitary Disposal - Gunpowder Park Office Toi,04/03/2023 00:00,272562,2.94,PE0015,PHS GROUP PLC,04/01/2023 00:00,30/4/2023 00:00:00,P01-2024
P&V,GUNPOWDER PARK,PREMISES RELATED EXPENDITURE,BUILDING SERVICE AGREEMENTS,2220,P119459-SERVICE-Building Servcie Agreement - Gunpowder Park,04/06/2023 00:00,272906,196.79,CO0199,EQUANS FM LIMITED (frmlyENGIE FM LIMITED),04/01/2023 00:00,30/4/2023 00:00:00,P01-2024
P&V,GUNPOWDER PARK,PREMISES RELATED EXPENDITURE,BUILDING SERVICE AGREEMENTS,2220,P121073-SERVICE-Sanitary Disposal - Gunpowder Park - Public T,04/12/2023 00:00,272996,14.3,PE0015,PHS GROUP PLC,04/01/2023 00:00,30/4/2023 00:00:00,P01-2024
P&V,RIVER LEE COUNTRY PARK,PREMISES RELATED EXPENDITURE,BUILDING SERVICE AGREEMENTS,2220,P121071-SERVICE-Sanitary Disposal - Ranger Base Office Holyfi,04/03/2023 00:00,272561,6.47,PE0015,PHS GROUP PLC,04/01/2023 00:00,30/4/2023 00:00:00,P01-2024
P&V,RIVER LEE COUNTRY PARK,PREMISES RELATED EXPENDITURE,BUILDING SERVICE AGREEMENTS,2220,P121074-SERVICE-Sanitary Disposal - Fishers Green Toilets,04/12/2023 00:00,272995,10.72,PE0015,PHS GROUP PLC,04/01/2023 00:00,30/4/2023 00:00:00,P01-2024
,LV LEISURE CENTRE CAMPSITE,PREMISES RELATED EXPENDITURE,BUILDING SERVICE AGREEMENTS,2220,P121596-SERVICE-Servicing of extinguishers refills and fixing,17/4/2023 00:00:00,273032,489.94,MO0478,MORGAN FIRE PROTECTION LTD,04/01/2023 00:00,30/4/2023 00:00:00,P01-2024
,LV LEISURE CENTRE CAMPSITE,PREMISES RELATED EXPENDITURE,BUILDING SERVICE AGREEMENTS,2220,P121672-SERVICE-unblocked urinals and sinkls,20/4/2023 00:00:00,273235,180,CO0550,CONVERT WATER LTD,04/01/2023 00:00,30/4/2023 00:00:00,P01-2024
,LV LEISURE CENTRE CAMPSITE,PREMISES RELATED EXPENDITURE,BUILDING SERVICE AGREEMENTS,2220,P121761-SERVICE-various site visits for different repairs,30/4/2023 00:00:00,273381,2195,SO0400,SOUTHERN GREEN SERVICES LIMITED,04/01/2023 00:00,30/4/2023 00:00:00,P01-2024
,LV LEISURE CENTRE CAMPSITE,PREMISES RELATED EXPENDITURE,BUILDING SERVICE AGREEMENTS,2220,P121760-SERVICE-Pest control checked site,30/4/2023 00:00:00,273401,70,VE0006,VERMINATE CITY & RURAL PEST CONTROL LTD,04/01/2023 00:00,30/4/2023 00:00:00,P01-2024
,LV LEISURE CENTRE CAMPSITE,PREMISES RELATED EXPENDITURE,BUILDING SERVICE AGREEMENTS,2220,P121065-SERVICE-AHU SERVICE PLAN,26/4/2023 00:00:00,273408,1239,FL0287,FLAKT GROUP UK LTD,04/01/2023 00:00,30/4/2023 00:00:00,P01-2024
,LV LEISURE CENTRE CAMPSITE,PREMISES RELATED EXPENDITURE,BUILDING SERVICE AGREEMENTS,2220,P121200-SERVICE-Risk assessment barrier,30/4/2023 00:00:00,273426,250,DE0013,DENNIS SECURITY CENTRE,04/01/2023 00:00,30/4/2023 00:00:00,P01-2024
,LEE VALLEY MARINA SPRINGFIELD,PREMISES RELATED EXPENDITURE,BUILDING REPAIRS & MAINTENANCE,2222,P121511-SERVICE-Call out for main gate repair,04/12/2023 00:00,272915,459,DE0013,DENNIS SECURITY CENTRE,04/01/2023 00:00,30/4/2023 00:00:00,P01-2024
P&V,SOUTH AREA RANGERS,PREMISES RELATED EXPENDITURE,BUILDING REPAIRS & MAINTENANCE,2222,P121561-SERVICE-Issue with Panel - Pump at Waterworks,30/4/2023 00:00:00,273317,105,CO0199,EQUANS FM LIMITED (frmlyENGIE FM LIMITED),04/01/2023 00:00,30/4/2023 00:00:00,P01-2024
P&V,SOUTH AREA RANGERS,PREMISES RELATED EXPENDITURE,BUILDING REPAIRS & MAINTENANCE,2222,P121561-SERVICE-Investigate Fault on Pumps at Waterworks,30/4/2023 00:00:00,273318,238.08,CO0199,EQUANS FM LIMITED (frmlyENGIE FM LIMITED),04/01/2023 00:00,30/4/2023 00:00:00,P01-2024
,LEE VALLEY CARAVAN PARK,PREMISES RELATED EXPENDITURE,ENERGY COSTS (GAS),2333,P121699-SERVICE-Standing Charge,25/4/2023 00:00:00,273198,60,AV0327,AVANTI GAS LIMITED,04/01/2023 00:00,30/4/2023 00:00:00,P01-2024
,LEE VALLEY CARAVAN PARK,PREMISES RELATED EXPENDITURE,ENERGY COSTS (GAS),2333,P121700-SERVICE-Standing charge,25/4/2023 00:00:00,273199,60,AV0327,AVANTI GAS LIMITED,04/01/2023 00:00,30/4/2023 00:00:00,P01-2024
,LEE VALLEY CARAVAN PARK,PREMISES RELATED EXPENDITURE,ENERGY COSTS (GAS),2333,P121701-SERVICE-Standing charge,25/4/2023 00:00:00,273200,60,AV0327,AVANTI GAS LIMITED,04/01/2023 00:00,30/4/2023 00:00:00,P01-2024
,LEE VALLEY CARAVAN PARK,PREMISES RELATED EXPENDITURE,ENERGY COSTS (GAS),2333,P121702-SERVICE-Standing Charge,25/4/2023 00:00:00,273201,60,AV0327,AVANTI GAS LIMITED,04/01/2023 00:00,30/4/2023 00:00:00,P01-2024
,LEE VALLEY CARAVAN PARK,PREMISES RELATED EXPENDITURE,ENERGY COSTS (GAS),2333,P121703-SERVICE-Standing Charge,25/4/2023 00:00:00,273202,60,AV0327,AVANTI GAS LIMITED,04/01/2023 00:00,30/4/2023 00:00:00,P01-2024
,LEE VALLEY CARAVAN PARK,PREMISES RELATED EXPENDITURE,ENERGY COSTS (GAS),2333,P121704-SERVICE-Standing charge,25/4/2023 00:00:00,273203,60,AV0327,AVANTI GAS LIMITED,04/01/2023 00:00,30/4/2023 00:00:00,P01-2024
,LEE VALLEY CARAVAN PARK,PREMISES RELATED EXPENDITURE,ENERGY COSTS (GAS),2333,P121705-SERVICE-Standing charge,25/4/2023 00:00:00,273204,60,AV0327,AVANTI GAS LIMITED,04/01/2023 00:00,30/4/2023 00:00:00,P01-2024
,LEE VALLEY CARAVAN PARK,PREMISES RELATED EXPENDITURE,ENERGY COSTS (GAS),2333,P121775-SERVICE-Gas supply,30/4/2023 00:00:00,273532,749.33,AV0327,AVANTI GAS LIMITED,04/01/2023 00:00,30/4/2023 00:00:00,P01-2024
,LEE VALLEY CARAVAN PARK,PREMISES RELATED EXPENDITURE,ENERGY COSTS (GAS),2333,P121776-SERVICE-Gas supply,30/4/2023 00:00:00,273533,2170.28,AV0327,AVANTI GAS LIMITED,04/01/2023 00:00,30/4/2023 00:00:00,P01-2024
,LEE VALLEY MARINA SPRINGFIELD,PREMISES RELATED EXPENDITURE,RENT (EXTERNAL),2442,01/04/23-30/09/23,04/03/2023 00:00,272308,200,TH0020,THAMES WATER UTILITIES LIMITED,04/01/2023 00:00,30/4/2023 00:00:00,P01-2024
P&V,KING GEORGE RESERVOIR SOUTH,PREMISES RELATED EXPENDITURE,RENT (EXTERNAL),2442,01/04/23-30/06/23,04/03/2023 00:00,272307,3375,TH0020,THAMES WATER UTILITIES LIMITED,04/01/2023 00:00,30/4/2023 00:00:00,P01-2024
P&V,MYDDELTON HOUSE,PREMISES RELATED EXPENDITURE,BUSINESS RATES,2444,2023/20/24,04/03/2023 00:00,272285,120232,EN0035,LONDON BOROUGH OF ENFIELD,04/01/2023 00:00,30/4/2023 00:00:00,P01-2024
CEO,COMMERCIAL ACCOMMODATION,PREMISES RELATED EXPENDITURE,BUSINESS RATES,2444,2023/24,18/4/2023 00:00:00,272286,4608,BR0016,BOROUGH OF BROXBOURNE,04/01/2023 00:00,30/4/2023 00:00:00,P01-2024
CEO,COMMERCIAL ACCOMMODATION,PREMISES RELATED EXPENDITURE,BUSINESS RATES,2444,2023/24,18/4/2023 00:00:00,272287,1112.45,BR0016,BOROUGH OF BROXBOURNE,04/01/2023 00:00,30/4/2023 00:00:00,P01-2024
,LEE VALLEY MARINA SPRINGFIELD,PREMISES RELATED EXPENDITURE,BUSINESS RATES,2444,2023/24,04/11/2023 00:00,272671,7072,WA0005,LONDON BOROUGH OF WALTHAM FOREST,04/01/2023 00:00,30/4/2023 00:00:00,P01-2024
,LEE VALLEY MARINA STANSTEAD,PREMISES RELATED EXPENDITURE,BUSINESS RATES,2444,2023/2024,04/03/2023 00:00,272055,2794.4,EA0086,EAST HERTS COUNCIL,04/01/2023 00:00,30/4/2023 00:00:00,P01-2024
,LEE VALLEY MARINA STANSTEAD,PREMISES RELATED EXPENDITURE,BUSINESS RATES,2444,2023/24,04/04/2023 00:00,272056,24966.66,EA0086,EAST HERTS COUNCIL,04/01/2023 00:00,30/4/2023 00:00:00,P01-2024
,LEE VALLEY MARINA STANSTEAD,PREMISES RELATED EXPENDITURE,BUSINESS RATES,2444,2023/2024,04/03/2023 00:00,272057,1497,EA0086,EAST HERTS COUNCIL,04/01/2023 00:00,30/4/2023 00:00:00,P01-2024
,LEE VALLEY WATERWORKS CENTRE,PREMISES RELATED EXPENDITURE,BUSINESS RATES,2444,2023/24,04/11/2023 00:00,272670,4116.75,WA0005,LONDON BOROUGH OF WALTHAM FOREST,04/01/2023 00:00,30/4/2023 00:00:00,P01-2024
,LEE VALLEY CAMPSITE,PREMISES RELATED EXPENDITURE,BUSINESS RATES,2444,2023/2024,04/03/2023 00:00,272021,5940.67,EP0025,EPPING FOREST DISTRICT COUNCIL,04/01/2023 00:00,30/4/2023 00:00:00,P01-2024
,LEE VALLEY CARAVAN PARK,PREMISES RELATED EXPENDITURE,BUSINESS RATES,2444,2023/2024,04/03/2023 00:00,272289,11487.53,BR0016,BOROUGH OF BROXBOURNE,04/01/2023 00:00,30/4/2023 00:00:00,P01-2024
CEO,COMMERCIAL ACCOMMODATION,PREMISES RELATED EXPENDITURE,COUNCIL TAX,2445,COUNCIL TAX 2023/24,04/01/2023 00:00,272023,2662.5,BR0016,BOROUGH OF BROXBOURNE,04/01/2023 00:00,30/4/2023 00:00:00,P01-2024
P&V,LEE VALLEY FARM HOLYFIELDHALL,PREMISES RELATED EXPENDITURE,COUNCIL TAX,2445,2023/2024,04/03/2023 00:00,272024,1594.6,EP0025,EPPING FOREST DISTRICT COUNCIL,04/01/2023 00:00,30/4/2023 00:00:00,P01-2024
P&V,LEE VALLEY FARM HOLYFIELDHALL,PREMISES RELATED EXPENDITURE,COUNCIL TAX,2445,2023/2024,04/03/2023 00:00,272025,2505.78,EP0025,EPPING FOREST DISTRICT COUNCIL,04/01/2023 00:00,30/4/2023 00:00:00,P01-2024
P&V,LEE VALLEY FARM HOLYFIELDHALL,PREMISES RELATED EXPENDITURE,COUNCIL TAX,2445,2023/2024,04/03/2023 00:00,272026,1366.79,EP0025,EPPING FOREST DISTRICT COUNCIL,04/01/2023 00:00,30/4/2023 00:00:00,P01-2024
,LEE VALLEY CAMPSITE,PREMISES RELATED EXPENDITURE,COUNCIL TAX,2445,2023/24,25/4/2023 00:00:00,273340,1889.9,EP0025,EPPING FOREST DISTRICT COUNCIL,04/01/2023 00:00,30/4/2023 00:00:00,P01-2024
P&V,MYDDELTON HOUSE GARDENS,PREMISES RELATED EXPENDITURE,COUNCIL TAX,2445,2023/24,25/4/2023 00:00:00,273141,2386.32,EN0035,LONDON BOROUGH OF ENFIELD,04/01/2023 00:00,30/4/2023 00:00:00,P01-2024
CEO,RESIDENTIAL ACCOMMODATION,PREMISES RELATED EXPENDITURE,PROPERTY MANAGEMT/LETTING FEES,2447,P121417-SERVICE-Pindar Cottage Landlord Fees,25/4/2023 00:00:00,272151,1440,CA0165,CASTLES,04/01/2023 00:00,30/4/2023 00:00:00,P01-2024
CEO,RESIDENTIAL ACCOMMODATION,PREMISES RELATED EXPENDITURE,PROPERTY MANAGEMT/LETTING FEES,2447,P121419-SERVICE-Aquaside Landlord Fees,25/4/2023 00:00:00,272313,1980,CA0165,CASTLES,04/01/2023 00:00,30/4/2023 00:00:00,P01-2024
P&V,EAST INDIA DOCK AND BOW CREEK,PREMISES RELATED EXPENDITURE,WATER,2555,01/02/23-31/07/23,04/03/2023 00:00,272738,25.05,CA0625,CASTLE WATER LIMITED,04/01/2023 00:00,30/4/2023 00:00:00,P01-2024
P&V,GUNPOWDER PARK,PREMISES RELATED EXPENDITURE,WATER,2555,01/02/23-31/07/23,04/03/2023 00:00,272679,549.52,CA0625,CASTLE WATER LIMITED,04/01/2023 00:00,30/4/2023 00:00:00,P01-2024
P&V,RIVER LEE COUNTRY PARK,PREMISES RELATED EXPENDITURE,WATER,2555,01/04/23-30/06/23,04/03/2023 00:00,272020,116.45,CA0625,CASTLE WATER LIMITED,04/01/2023 00:00,30/4/2023 00:00:00,P01-2024
P&V,RIVER LEE COUNTRY PARK,PREMISES RELATED EXPENDITURE,WATER,2555,01/02/23-31/07/23,04/03/2023 00:00,272452,939.17,CA0625,CASTLE WATER LIMITED,04/01/2023 00:00,30/4/2023 00:00:00,P01-2024
P&V,RIVER LEE COUNTRY PARK,PREMISES RELATED EXPENDITURE,WATER,2555,01/02/23-31/07/23,04/03/2023 00:00,272680,163.79,CA0625,CASTLE WATER LIMITED,04/01/2023 00:00,30/4/2023 00:00:00,P01-2024
P&V,FORMER LV LIDO SITE,PREMISES RELATED EXPENDITURE,WATER,2555,METER VERIFICATION,04/12/2023 00:00,273015,203.68,CA0625,CASTLE WATER LIMITED,04/01/2023 00:00,30/4/2023 00:00:00,P01-2024
,LEE VALLEY WATERWORKS CENTRE,PREMISES RELATED EXPENDITURE,CLEANING & DOMESTIC SUPPLIES,2666,P121597-SERVICE-3x Mini Jumbo Toilet Rolls,18/4/2023 00:00:00,273215,84.06,TH0008,JKL SOLUTIONS LTD,04/01/2023 00:00,30/4/2023 00:00:00,P01-2024
,LEE VALLEY CARAVAN PARK,PREMISES RELATED EXPENDITURE,CLEANING & DOMESTIC SUPPLIES,2666,P121520-SERVICE-Cleaning materials,17/4/2023 00:00:00,273031,245.67,HY0043,HYGIENE SYSTEMS LTD,04/01/2023 00:00,30/4/2023 00:00:00,P01-2024
,LEE VALLEY CARAVAN PARK,PREMISES RELATED EXPENDITURE,CLEANING & DOMESTIC SUPPLIES,2666,P121520-SERVICE-Cleaning materials,25/4/2023 00:00:00,273157,14.79,HY0043,HYGIENE SYSTEMS LTD,04/01/2023 00:00,30/4/2023 00:00:00,P01-2024
P&V,ALMOST WILD CAMPSITE,PREMISES RELATED EXPENDITURE,CLEANING & DOMESTIC SUPPLIES,2666,P121604-SERVICE-Various cleaning products,30/4/2023 00:00:00,273368,88.95,HY0043,HYGIENE SYSTEMS LTD,04/01/2023 00:00,30/4/2023 00:00:00,P01-2024
,LV LEISURE CENTRE CAMPSITE,PREMISES RELATED EXPENDITURE,CLEANING & DOMESTIC SUPPLIES,2666,P121555-SERVICE-Cleaning supplies for site,18/4/2023 00:00:00,273126,385.67,HY0043,HYGIENE SYSTEMS LTD,04/01/2023 00:00,30/4/2023 00:00:00,P01-2024
P&V,LEE VALLEY FARM HOLYFIELDHALL,TRANSPORT RELATED EXPENDITURE,TRANSPORT RUNNING EXPENSES,3333,P121521-SERVICE-Rental,04/11/2023 00:00,272902,3500.25,CH0719,CHANDLERS (FARM EQUIPMENT) LTD,04/01/2023 00:00,30/4/2023 00:00:00,P01-2024
P&V,LEE VALLEY FARM HOLYFIELDHALL,TRANSPORT RELATED EXPENDITURE,TRANSPORT RUNNING EXPENSES,3333,P121573-SERVICE-Service Contract for JCB 2023/24,25/4/2023 00:00:00,273230,3347.52,OL0059,OLIVER LANDPOWER LIMITED,04/01/2023 00:00,30/4/2023 00:00:00,P01-2024
P&V,SOUTH AREA RANGERS,TRANSPORT RELATED EXPENDITURE,VEHICLE REPAIRS & MAINTENANCE,3338,P121668-SERVICE-Vehicle Repair - LT71HPE,25/4/2023 00:00:00,273231,1424.26,OL0059,OLIVER LANDPOWER LIMITED,04/01/2023 00:00,30/4/2023 00:00:00,P01-2024
P&V,RIVER LEE COUNTRY PARK,TRANSPORT RELATED EXPENDITURE,VEHICLE REPAIRS & MAINTENANCE,3338,P121580-SERVICE-Mini VIP Vehicle Valet - x4,25/4/2023 00:00:00,273348,160,AB0153,ABBEY SERVICE CENTRE,04/01/2023 00:00,30/4/2023 00:00:00,P01-2024
,LEE VALLEY MARINA SPRINGFIELD,SUPPLIES AND SERVICES,EQUIPMENT & MATERIALS,4111,P121679-SERVICE-To supply 4 x expander Barrier Red/White,25/4/2023 00:00:00,273356,666.63,SC0057,SCREWFIX DIRECT LTD,04/01/2023 00:00,30/4/2023 00:00:00,P01-2024
,STANSTEAD RECHARGEABLE WORKS,SUPPLIES AND SERVICES,EQUIPMENT & MATERIALS,4111,P121472-SERVICE-blacking 7 anodes,17/4/2023 00:00:00,272794,6769.05,MI0200,MIDLAND CHANDLERS LIMITED,04/01/2023 00:00,30/4/2023 00:00:00,P01-2024
,LEE VALLEY CAMPSITE,SUPPLIES AND SERVICES,EQUIPMENT & MATERIALS,4111,P121513-SERVICE-SC 10 x BBQ Firepits,25/4/2023 00:00:00,272936,24.09,AM0406,AMAZON PAYMENTS UK LIMITED,04/01/2023 00:00,30/4/2023 00:00:00,P01-2024
,LEE VALLEY CAMPSITE,SUPPLIES AND SERVICES,EQUIPMENT & MATERIALS,4111,P121513-SERVICE-SC 10 x BBQ Firepits,25/4/2023 00:00:00,272937,24.09,AM0406,AMAZON PAYMENTS UK LIMITED,04/01/2023 00:00,30/4/2023 00:00:00,P01-2024
,LEE VALLEY CAMPSITE,SUPPLIES AND SERVICES,EQUIPMENT & MATERIALS,4111,P121513-SERVICE-SC 10 x BBQ Firepits,25/4/2023 00:00:00,272938,24.09,AM0406,AMAZON PAYMENTS UK LIMITED,04/01/2023 00:00,30/4/2023 00:00:00,P01-2024
,LEE VALLEY CAMPSITE,SUPPLIES AND SERVICES,EQUIPMENT & MATERIALS,4111,P121513-SERVICE-SC 10 x BBQ Firepits,25/4/2023 00:00:00,272939,24.09,AM0406,AMAZON PAYMENTS UK LIMITED,04/01/2023 00:00,30/4/2023 00:00:00,P01-2024
,LEE VALLEY CAMPSITE,SUPPLIES AND SERVICES,EQUIPMENT & MATERIALS,4111,P121513-SERVICE-SC 10 x BBQ Firepits,25/4/2023 00:00:00,272940,24.09,AM0406,AMAZON PAYMENTS UK LIMITED,04/01/2023 00:00,30/4/2023 00:00:00,P01-2024
,LEE VALLEY CAMPSITE,SUPPLIES AND SERVICES,EQUIPMENT & MATERIALS,4111,P121513-SERVICE-SC 10 x BBQ Firepits,25/4/2023 00:00:00,272941,24.09,AM0406,AMAZON PAYMENTS UK LIMITED,04/01/2023 00:00,30/4/2023 00:00:00,P01-2024
,LEE VALLEY CAMPSITE,SUPPLIES AND SERVICES,EQUIPMENT & MATERIALS,4111,P121513-SERVICE-SC 10 x BBQ Firepits,25/4/2023 00:00:00,272942,24.09,AM0406,AMAZON PAYMENTS UK LIMITED,04/01/2023 00:00,30/4/2023 00:00:00,P01-2024
,LEE VALLEY CAMPSITE,SUPPLIES AND SERVICES,EQUIPMENT & MATERIALS,4111,P121513-SERVICE-SC 10 x BBQ Firepits,25/4/2023 00:00:00,272943,24.09,AM0406,AMAZON PAYMENTS UK LIMITED,04/01/2023 00:00,30/4/2023 00:00:00,P01-2024
,LEE VALLEY CAMPSITE,SUPPLIES AND SERVICES,EQUIPMENT & MATERIALS,4111,P121513-SERVICE-SC 10 x BBQ Firepits,25/4/2023 00:00:00,272944,24.09,AM0406,AMAZON PAYMENTS UK LIMITED,04/01/2023 00:00,30/4/2023 00:00:00,P01-2024
,LEE VALLEY CAMPSITE,SUPPLIES AND SERVICES,EQUIPMENT & MATERIALS,4111,P121513-SERVICE-SC 10 x BBQ Firepits,25/4/2023 00:00:00,272945,24.09,AM0406,AMAZON PAYMENTS UK LIMITED,04/01/2023 00:00,30/4/2023 00:00:00,P01-2024
,LEE VALLEY CAMPSITE,SUPPLIES AND SERVICES,EQUIPMENT & MATERIALS,4111,P121608-SERVICE-Site Materials,20/4/2023 00:00:00,273021,75,BQ0164,TRADE UK ACCOUNT,04/01/2023 00:00,30/4/2023 00:00:00,P01-2024
,LEE VALLEY CAMPSITE,SUPPLIES AND SERVICES,EQUIPMENT & MATERIALS,4111,P121588-SERVICE-MDF For Peaky Pods Sofa Beds,20/4/2023 00:00:00,273323,29.5,LE0012,LEASIDE TIMBER & BUILDERS MERCHANTS LTD,04/01/2023 00:00,30/4/2023 00:00:00,P01-2024
,LEE VALLEY CAMPSITE,SUPPLIES AND SERVICES,EQUIPMENT & MATERIALS,4111,P121432-SERVICE-6x Spill kits,30/4/2023 00:00:00,273425,28.26,HY0043,HYGIENE SYSTEMS LTD,04/01/2023 00:00,30/4/2023 00:00:00,P01-2024
,LEE VALLEY CARAVAN PARK,SUPPLIES AND SERVICES,EQUIPMENT & MATERIALS,4111,P121708-SERVICE-2 Ton Type One,25/4/2023 00:00:00,273360,46,LE0012,LEASIDE TIMBER & BUILDERS MERCHANTS LTD,04/01/2023 00:00,30/4/2023 00:00:00,P01-2024
,LEE VALLEY CARAVAN PARK,SUPPLIES AND SERVICES,EQUIPMENT & MATERIALS,4111,P121570-SERVICE-2 ton type one,25/4/2023 00:00:00,273360,46,LE0012,LEASIDE TIMBER & BUILDERS MERCHANTS LTD,04/01/2023 00:00,30/4/2023 00:00:00,P01-2024
P&V,NORTH AREA RANGERS,SUPPLIES AND SERVICES,EQUIPMENT & MATERIALS,4111,P117538-SERVICE-Equipment & Materials as and when required,20/4/2023 00:00:00,273325,90.69,JE0011,SAINT-GOBAIN BUILDING DISTRIBUTION,04/01/2023 00:00,30/4/2023 00:00:00,P01-2024
P&V,RIVER LEE COUNTRY PARK,SUPPLIES AND SERVICES,EQUIPMENT & MATERIALS,4111,P121345-SERVICE-Husqvarna 135 Chainsaw,20/4/2023 00:00:00,273233,202.5,JO0109,F R JONES & SON,04/01/2023 00:00,30/4/2023 00:00:00,P01-2024
P&V,ALMOST WILD CAMPSITE,SUPPLIES AND SERVICES,EQUIPMENT & MATERIALS,4111,P121530-SERVICE-Various Entrance Signs for AMW,18/4/2023 00:00:00,273236,390,SL0528,SLAM SIGNS LTD,04/01/2023 00:00,30/4/2023 00:00:00,P01-2024
,LV LEISURE CENTRE CAMPSITE,SUPPLIES AND SERVICES,EQUIPMENT & MATERIALS,4111,P121671-SERVICE-shower hose and cabinet key,20/4/2023 00:00:00,273218,27.47,SC0057,SCREWFIX DIRECT LTD,04/01/2023 00:00,30/4/2023 00:00:00,P01-2024
,LV LEISURE CENTRE CAMPSITE,SUPPLIES AND SERVICES,EQUIPMENT & MATERIALS,4111,P121763-SERVICE-timber and screws for decking,30/4/2023 00:00:00,273337,53.81,BQ0164,TRADE UK ACCOUNT,04/01/2023 00:00,30/4/2023 00:00:00,P01-2024
,LV LEISURE CENTRE GOLF COURSE,SUPPLIES AND SERVICES,EQUIPMENT & MATERIALS,4111,P121451-SERVICE-20ft Top Dressing P205,25/4/2023 00:00:00,273155,1139,MR0420,MR AMENITY LTD,04/01/2023 00:00,30/4/2023 00:00:00,P01-2024
,LV LEISURE CENTRE GOLF COURSE,SUPPLIES AND SERVICES,EQUIPMENT & MATERIALS,4111,P121451-SERVICE-18 Flagsticks,25/4/2023 00:00:00,273155,504,MR0420,MR AMENITY LTD,04/01/2023 00:00,30/4/2023 00:00:00,P01-2024
P&V,FISHERIES MANAGEMENT,SUPPLIES AND SERVICES,EQUIPMENT MAINTENANCE,4112,P121748-SERVICE-Testing High Voltage Electric Fishing Gear,30/4/2023 00:00:00,273527,290,EL0156,ELECTRAFISH LIMITED,04/01/2023 00:00,30/4/2023 00:00:00,P01-2024
,LEE VALLEY CARAVAN PARK,SUPPLIES AND SERVICES,EQUIPMENT MAINTENANCE,4112,P121603-SERVICE-Sheet MDF 12mm 8 x 4 for Wigwam Beds,20/4/2023 00:00:00,273324,29.5,LE0012,LEASIDE TIMBER & BUILDERS MERCHANTS LTD,04/01/2023 00:00,30/4/2023 00:00:00,P01-2024
,LEE VALLEY CARAVAN PARK,SUPPLIES AND SERVICES,EQUIPMENT MAINTENANCE,4112,"P121772-SERVICE-Paint, brushes, tyre inflator",30/4/2023 00:00:00,273387,78.74,SC0057,SCREWFIX DIRECT LTD,04/01/2023 00:00,30/4/2023 00:00:00,P01-2024
,LV LEISURE CENTRE CAMPSITE,SUPPLIES AND SERVICES,EQUIPMENT MAINTENANCE,4112,P121670-SERVICE-PAT testing Edmonton,19/4/2023 00:00:00,273214,399,BR0018,BRADSHAW ELECTRICAL LIMITED,04/01/2023 00:00,30/4/2023 00:00:00,P01-2024
,LV LEISURE CENTRE CAMPSITE,SUPPLIES AND SERVICES,EQUIPMENT MAINTENANCE,4112,P121732-SERVICE-cctv monitor green keepers,30/4/2023 00:00:00,273385,280,RV0035,RVTV SECURITY GROUP LTD,04/01/2023 00:00,30/4/2023 00:00:00,P01-2024
,LV LEISURE CENTRE CAMPSITE,SUPPLIES AND SERVICES,EQUIPMENT MAINTENANCE,4112,P121759-SERVICE-Emergency lighting test,30/4/2023 00:00:00,273529,345,BR0018,BRADSHAW ELECTRICAL LIMITED,04/01/2023 00:00,30/4/2023 00:00:00,P01-2024
,LV LEISURE CENTRE GOLF COURSE,SUPPLIES AND SERVICES,EQUIPMENT MAINTENANCE,4112,P121505-SERVICE-Roller ASM,04/11/2023 00:00,272903,217.06,LE0279,REESINK TURFCARE UK LIMITED,04/01/2023 00:00,30/4/2023 00:00:00,P01-2024
,LV LEISURE CENTRE GOLF COURSE,SUPPLIES AND SERVICES,EQUIPMENT MAINTENANCE,4112,P121505-SERVICE-Detent Brake,04/11/2023 00:00,272903,37.85,LE0279,REESINK TURFCARE UK LIMITED,04/01/2023 00:00,30/4/2023 00:00:00,P01-2024
,LV LEISURE CENTRE GOLF COURSE,SUPPLIES AND SERVICES,EQUIPMENT MAINTENANCE,4112,P121505-SERVICE-Pawl Brake,25/4/2023 00:00:00,273000,49.63,LE0279,REESINK TURFCARE UK LIMITED,04/01/2023 00:00,30/4/2023 00:00:00,P01-2024
R&B,INFORMATION TECHNOLOGY,SUPPLIES AND SERVICES,IT CORE SYSTEMS,4113,P121256-SERVICE-Finance system upgrade existing agreement ren,17/4/2023 00:00:00,272515,42997.5,CE0021,ADVANCED BUSINESS SOLUTIONS,04/01/2023 00:00,30/4/2023 00:00:00,P01-2024
R&B,INFORMATION TECHNOLOGY,SUPPLIES AND SERVICES,IT CORE SYSTEMS,4113,P121421-SERVICE-CIPHR Payroll April 2023 up to 330 employees,04/03/2023 00:00,272546,569.58,CI0721,CIPHR,04/01/2023 00:00,30/4/2023 00:00:00,P01-2024
R&B,INFORMATION TECHNOLOGY,SUPPLIES AND SERVICES,IT CORE SYSTEMS,4113,"P121499-SERVICE-Efin monthly managed fees @ 1,466.82",17/4/2023 00:00:00,272554,1466.82,CE0021,ADVANCED BUSINESS SOLUTIONS,04/01/2023 00:00,30/4/2023 00:00:00,P01-2024
R&B,INFORMATION TECHNOLOGY,SUPPLIES AND SERVICES,IT CORE SYSTEMS,4113,P121193-SERVICE-Gema parks Campsite monthly subs April 2023 -,04/12/2023 00:00,272985,605,NE0218,NETGUIDES LIMITED,04/01/2023 00:00,30/4/2023 00:00:00,P01-2024
R&B,INFORMATION TECHNOLOGY,SUPPLIES AND SERVICES,IT CORE SYSTEMS,4113,"P121499-SERVICE-Efin monthly managed fees @ 1,466.82",20/4/2023 00:00:00,273020,1466.82,CE0021,ADVANCED BUSINESS SOLUTIONS,04/01/2023 00:00,30/4/2023 00:00:00,P01-2024
R&B,INFORMATION TECHNOLOGY,SUPPLIES AND SERVICES,IT CORE SYSTEMS,4113,P121488-SERVICE-ArcGIS Online Creator Annual Subscription,20/4/2023 00:00:00,273321,766,ES0361,ESRI (UK) LTD,04/01/2023 00:00,30/4/2023 00:00:00,P01-2024
R&B,INFORMATION TECHNOLOGY,SUPPLIES AND SERVICES,IT CORE SYSTEMS,4113,P121691-SERVICE-P11D PAYROLL SERVICES,25/4/2023 00:00:00,273334,730,CI0721,CIPHR,04/01/2023 00:00,30/4/2023 00:00:00,P01-2024
R&B,INFORMATION TECHNOLOGY,SUPPLIES AND SERVICES,IT CORE SYSTEMS,4113,P121718-SERVICE-PAYware Ocius pos Quarterly  service fee for,25/4/2023 00:00:00,273388,828.24,CO0440,VERIFONE SERVICES UK & IRELAND LTD,04/01/2023 00:00,30/4/2023 00:00:00,P01-2024
R&B,INFORMATION TECHNOLOGY,SUPPLIES AND SERVICES,IT CORE SYSTEMS,4113,P121718-SERVICE-PAYware Ocius pos Quarterly  service fee for,25/4/2023 00:00:00,273389,118.32,CO0440,VERIFONE SERVICES UK & IRELAND LTD,04/01/2023 00:00,30/4/2023 00:00:00,P01-2024
R&B,INFORMATION TECHNOLOGY,SUPPLIES AND SERVICES,IT CORE SYSTEMS,4113,P121421-SERVICE-CIPHR Payroll April 2023 - March 2024 @ 569.,30/4/2023 00:00:00,273417,569.58,CI0721,CIPHR,04/01/2023 00:00,30/4/2023 00:00:00,P01-2024
R&B,INFORMATION TECHNOLOGY,SUPPLIES AND SERVICES,IT NETWORK & TELECOMS COSTS,4114,P117871-SERVICE-Monthly SIP Apr 22-Mar 23,04/06/2023 00:00,272792,167,FR0131,VOICEFLEX LTD,04/01/2023 00:00,30/4/2023 00:00:00,P01-2024
R&B,INFORMATION TECHNOLOGY,SUPPLIES AND SERVICES,IT NETWORK & TELECOMS COSTS,4114,P121559-SERVICE-Campsites Circuits 1GB for Public WiFi - Apri,19/4/2023 00:00:00,272988,835,PP0200,PPSNET LIMITED,04/01/2023 00:00,30/4/2023 00:00:00,P01-2024
R&B,INFORMATION TECHNOLOGY,SUPPLIES AND SERVICES,IT NETWORK & TELECOMS COSTS,4114,P121558-SERVICE-MPLS for all sites April - September 2023,19/4/2023 00:00:00,272989,8757.36,PP0200,PPSNET LIMITED,04/01/2023 00:00,30/4/2023 00:00:00,P01-2024
P&V,MYDDELTON HOUSE,SUPPLIES AND SERVICES,IT HARDWARE & SOFTWARE COSTS,4116,ZEN INTERNET LTD,04/03/2023 00:00,272563,29.5,ZE0007,ZEN INTERNET LTD,04/01/2023 00:00,30/4/2023 00:00:00,P01-2024
R&B,INFORMATION TECHNOLOGY,SUPPLIES AND SERVICES,IT HARDWARE & SOFTWARE COSTS,4116,P121654-SERVICE-All instances,20/4/2023 00:00:00,273205,113.58,AS0501,ASSET TIGER,04/01/2023 00:00,30/4/2023 00:00:00,P01-2024
R&B,INFORMATION TECHNOLOGY,SUPPLIES AND SERVICES,IT HARDWARE & SOFTWARE COSTS,4116,P121669-SERVICE-Ubiquiti GBE-LR airMAX GigaBeam Outdoor 60GHz,25/4/2023 00:00:00,273319,182.36,BR0650,BROADBANDBUYER.COM,04/01/2023 00:00,30/4/2023 00:00:00,P01-2024
R&B,INFORMATION TECHNOLOGY,SUPPLIES AND SERVICES,IT HARDWARE & SOFTWARE COSTS,4116,P121659-SERVICE-TM300 Scanner 1 Year Warranty,30/4/2023 00:00:00,273429,499,HU0228,JOHN E WRIGHT & CO LTD,04/01/2023 00:00,30/4/2023 00:00:00,P01-2024
P&V,MYDDLETON HSE HERITAGE CENTRE,SUPPLIES AND SERVICES,IT HARDWARE & SOFTWARE COSTS,4116,BIDFOOD,25/4/2023 00:00:00,273364,38.94,360001,BIDFOOD,04/01/2023 00:00,30/4/2023 00:00:00,P01-2024
P&V,MYDDLETON HSE HERITAGE CENTRE,SUPPLIES AND SERVICES,IT HARDWARE & SOFTWARE COSTS,4116,BIDFOOD,25/4/2023 00:00:00,273364,559.32,360001,BIDFOOD,04/01/2023 00:00,30/4/2023 00:00:00,P01-2024
P&V,MYDDLETON HSE HERITAGE CENTRE,SUPPLIES AND SERVICES,IT HARDWARE & SOFTWARE COSTS,4116,P121666-SERVICE-Food & drink order week comm 17 Apr 2023,25/4/2023 00:00:00,273364,598.26,360001,BIDFOOD,04/01/2023 00:00,30/4/2023 00:00:00,P01-2024
P&V,MYDDLETON HSE HERITAGE CENTRE,SUPPLIES AND SERVICES,IT HARDWARE & SOFTWARE COSTS,4116,BIDFOOD,25/4/2023 00:00:00,273364,-598.26,360001,BIDFOOD,04/01/2023 00:00,30/4/2023 00:00:00,P01-2024
R&B,INFORMATION TECHNOLOGY,SUPPLIES AND SERVICES,IT MAINTENANCE AGREEMENTS,4119,P121405-SERVICE-Stanstead USG - Manage Service fee (11-20 Acc,20/4/2023 00:00:00,272711,80.13,RE0354,RENOVOTEC LTD,04/01/2023 00:00,30/4/2023 00:00:00,P01-2024
R&B,INFORMATION TECHNOLOGY,SUPPLIES AND SERVICES,IT MAINTENANCE AGREEMENTS,4119,P121405-SERVICE-Springfield USG - Manage Service Fee (06-10 A,20/4/2023 00:00:00,272711,1490.28,RE0354,RENOVOTEC LTD,04/01/2023 00:00,30/4/2023 00:00:00,P01-2024
R&B,INFORMATION TECHNOLOGY,SUPPLIES AND SERVICES,IT MAINTENANCE AGREEMENTS,4119,"P121405-SERVICE-USG250 - Development, PS, universal sub, buil",20/4/2023 00:00:00,272711,396.03,RE0354,RENOVOTEC LTD,04/01/2023 00:00,30/4/2023 00:00:00,P01-2024
R&B,INFORMATION TECHNOLOGY,SUPPLIES AND SERVICES,IT MAINTENANCE AGREEMENTS,4119,"P121405-SERVICE-USG250 - Development, PS, universal sub, buil",20/4/2023 00:00:00,272712,1490.28,RE0354,RENOVOTEC LTD,04/01/2023 00:00,30/4/2023 00:00:00,P01-2024
R&B,INFORMATION TECHNOLOGY,SUPPLIES AND SERVICES,IT MAINTENANCE AGREEMENTS,4119,"P121405-SERVICE-USG250 - Development, PS, universal sub, buil",20/4/2023 00:00:00,272713,1966.44,RE0354,RENOVOTEC LTD,04/01/2023 00:00,30/4/2023 00:00:00,P01-2024
R&B,INFORMATION TECHNOLOGY,SUPPLIES AND SERVICES,IT MAINTENANCE AGREEMENTS,4119,P121405-SERVICE-Dobbs Weir USG - Manage Service Fee (11-20 Ac,04/06/2023 00:00,272714,1966.44,RE0354,RENOVOTEC LTD,04/01/2023 00:00,30/4/2023 00:00:00,P01-2024
,LEE VALLEY MARINA STANSTEAD,SUPPLIES AND SERVICES,IT MAINTENANCE AGREEMENTS,4119,P120246-SERVICE-Support & Data Nov 22 - Mar23,04/12/2023 00:00,272983,160.53,CY0653,CYBERTILL,04/01/2023 00:00,30/4/2023 00:00:00,P01-2024
,LV LEISURE CENTRE GOLF COURSE,SUPPLIES AND SERVICES,MATERIALS (GROUNDS MAINT),4125,P121567-SERVICE-Roller Assembly,30/4/2023 00:00:00,273026,457.53,LE0279,REESINK TURFCARE UK LIMITED,04/01/2023 00:00,30/4/2023 00:00:00,P01-2024
,LV LEISURE CENTRE GOLF COURSE,SUPPLIES AND SERVICES,MATERIALS (GROUNDS MAINT),4125,P121298-SERVICE-Spraying on Golf Course,25/4/2023 00:00:00,273156,1950,MR0420,MR AMENITY LTD,04/01/2023 00:00,30/4/2023 00:00:00,P01-2024
,LV LEISURE CENTRE GOLF COURSE,SUPPLIES AND SERVICES,MATERIALS (GROUNDS MAINT),4125,P121326-SERVICE-Tree Works Golf Course,30/4/2023 00:00:00,273531,350,PA0222,PARKIN & PARKER TREE SPECIALISTS,04/01/2023 00:00,30/4/2023 00:00:00,P01-2024
P&V,MYDDELTON HOUSE GARDENS,SUPPLIES AND SERVICES,MATERIALS (PLANTS & SHRUBS),4126,P121579-SERVICE-plant order garden april 23,17/4/2023 00:00:00,273047,204.31,CL0093,CLOCKHOUSE NURSERY,04/01/2023 00:00,30/4/2023 00:00:00,P01-2024
,STANSTEAD RECHARGEABLE WORKS,SUPPLIES AND SERVICES,MATERIALS (TOOLS & PLANT),4127,P121593-SERVICE-Supply seals and delivery,25/4/2023 00:00:00,273347,92.84,EN0309,PRH ENGINEERING LIMITED,04/01/2023 00:00,30/4/2023 00:00:00,P01-2024
,STANSTEAD RECHARGEABLE WORKS,SUPPLIES AND SERVICES,MATERIALS (ENG OTHER),4130,P121616-SERVICE-rudder bearing,26/4/2023 00:00:00,272990,37.73,MI0200,MIDLAND CHANDLERS LIMITED,04/01/2023 00:00,30/4/2023 00:00:00,P01-2024
,STANSTEAD RECHARGEABLE WORKS,SUPPLIES AND SERVICES,MATERIALS (ENG OTHER),4130,P121625-SERVICE-engineering parts,26/4/2023 00:00:00,273229,85,TH0642,THOMAS PRECISION ENGINEERS,04/01/2023 00:00,30/4/2023 00:00:00,P01-2024
P&V,LEE VALLEY FARM HOLYFIELDHALL,SUPPLIES AND SERVICES,DAIRY SUNDRIES,4138,P121572-SERVICE-Replacement Passport,17/4/2023 00:00:00,272928,20,BR0642,BRITISH CATTLE MOVEMENT SERVICES,04/01/2023 00:00,30/4/2023 00:00:00,P01-2024
P&V,LEE VALLEY FARM HOLYFIELDHALL,SUPPLIES AND SERVICES,DAIRY SUNDRIES,4138,P121601-SERVICE-Dairy Sundries,17/4/2023 00:00:00,273040,37.54,MI0023,MILL DAIRY SERVICES,04/01/2023 00:00,30/4/2023 00:00:00,P01-2024
,LEE VALLEY CAMPSITE,SUPPLIES AND SERVICES,MISCELLANEOUS CARAVAN COSTS,4174,P121719-SERVICE-Introduction 31 SC Lorraine Sawyer,30/4/2023 00:00:00,273416,1000,RA0356,RAINBOW ESTATE AGENTS (SE) LTD,04/01/2023 00:00,30/4/2023 00:00:00,P01-2024
,LEE VALLEY CARAVAN PARK,SUPPLIES AND SERVICES,MISCELLANEOUS CARAVAN COSTS,4174,P121719-SERVICE-Introduction 65 DW Stanley Exell,30/4/2023 00:00:00,273416,1000,RA0356,RAINBOW ESTATE AGENTS (SE) LTD,04/01/2023 00:00,30/4/2023 00:00:00,P01-2024
,LEE VALLEY CARAVAN PARK,SUPPLIES AND SERVICES,CLOTHING & UNIFORMS,4225,P121774-SERVICE-Uniform,30/4/2023 00:00:00,273404,75.95,SC0057,SCREWFIX DIRECT LTD,04/01/2023 00:00,30/4/2023 00:00:00,P01-2024
,LEE VALLEY CARAVAN PARK,SUPPLIES AND SERVICES,CLOTHING & UNIFORMS,4225,SCREWFIX DIRECT LTD,30/4/2023 00:00:00,273404,-75.95,SC0057,SCREWFIX DIRECT LTD,04/01/2023 00:00,30/4/2023 00:00:00,P01-2024
,LEE VALLEY CARAVAN PARK,SUPPLIES AND SERVICES,CLOTHING & UNIFORMS,4225,SCREWFIX DIRECT LTD,30/4/2023 00:00:00,273404,57.99,SC0057,SCREWFIX DIRECT LTD,04/01/2023 00:00,30/4/2023 00:00:00,P01-2024
,LEE VALLEY CARAVAN PARK,SUPPLIES AND SERVICES,CLOTHING & UNIFORMS,4225,SCREWFIX DIRECT LTD,30/4/2023 00:00:00,273404,17.96,SC0057,SCREWFIX DIRECT LTD,04/01/2023 00:00,30/4/2023 00:00:00,P01-2024
P&V,RIVER LEE COUNTRY PARK,SUPPLIES AND SERVICES,CLOTHING & UNIFORMS,4225,P121486-SERVICE-Safety Boots,04/12/2023 00:00,272991,57.99,SC0057,SCREWFIX DIRECT LTD,04/01/2023 00:00,30/4/2023 00:00:00,P01-2024
,LEE VALLEY MARINA STANSTEAD,SUPPLIES AND SERVICES,OFFICE EXPENSES,4311,P121687-SERVICE-till rolls & hand soap,25/4/2023 00:00:00,273384,90,TH0008,JKL SOLUTIONS LTD,04/01/2023 00:00,30/4/2023 00:00:00,P01-2024
R&B,INFORMATION TECHNOLOGY,SUPPLIES AND SERVICES,PHOTOCOPYING,4314,KONICA MINOLTA BUSINESS SOLUTI,18/4/2023 00:00:00,273147,459.6,KO0071,KONICA MINOLTA BUSINESS SOLUTIONS ( UK) LTD,04/01/2023 00:00,30/4/2023 00:00:00,P01-2024
R&B,HUMAN RESOURCES,SUPPLIES AND SERVICES,PERIODICALS & REFERENCE BOOKS,4332,P121078-SERVICE-XpertHR SUBS 01/04/2023 - 23/09/2023,04/01/2023 00:00,272345,1155,VI0074,VINE HR LIMITED,04/01/2023 00:00,30/4/2023 00:00:00,P01-2024
R&B,FINANCE & RESOURCES MANAGEMENT,SUPPLIES AND SERVICES,PUBLICATIONS,4333,P121150-SERVICE-CIPFA subscription 1-4-23 to 31-3-24,04/01/2023 00:00,271779,4055,IN0019,THE CHARTERED INSTITUTE OF PUBLIC FINANCE,04/01/2023 00:00,30/4/2023 00:00:00,P01-2024
P&V,PROJECT & FUNDING DELIVERY,SUPPLIES AND SERVICES,SUBSCRIPTIONS,4334,P121598-SERVICE-APSE Membership - 2023-2024,18/4/2023 00:00:00,273133,1700,AP0492,APSE,04/01/2023 00:00,30/4/2023 00:00:00,P01-2024
R&B,FINANCE,SUPPLIES AND SERVICES,SUBSCRIPTIONS,4334,P121698-SERVICE-PAYROLL CORPORATE MEMBERSHIP 2023/2024,25/4/2023 00:00:00,273366,665,PA0393,THE PAYROLL CENTRE,04/01/2023 00:00,30/4/2023 00:00:00,P01-2024
CEO,LEGAL SERVICES,SUPPLIES AND SERVICES,SUBSCRIPTIONS,4334,P121490-SERVICE-Subscription Info Services & Software Solutio,04/06/2023 00:00,272776,4673.88,TH0291,THOMSON REUTERS,04/01/2023 00:00,30/4/2023 00:00:00,P01-2024
CEO,LEGAL SERVICES,SUPPLIES AND SERVICES,SUBSCRIPTIONS,4334,P121194-SERVICE-2023 Membership Plus,04/06/2023 00:00,272777,600,LG0046,LLG-LAWYERS IN LOCAL GOVERNMENT,04/01/2023 00:00,30/4/2023 00:00:00,P01-2024
P&V,LEE VALLEY FARM HOLYFIELDHALL,SUPPLIES AND SERVICES,SUBSCRIPTIONS,4334,P121613-SERVICE-Subs,25/4/2023 00:00:00,273124,432.64,NA0005,NATIONAL MILK RECORDS PLC,04/01/2023 00:00,30/4/2023 00:00:00,P01-2024
R&B,INFORMATION TECHNOLOGY,SUPPLIES AND SERVICES,TELEPHONES (OFFICE),4481,ZEN INTERNET LTD,20/4/2023 00:00:00,273023,38,ZE0007,ZEN INTERNET LTD,04/01/2023 00:00,30/4/2023 00:00:00,P01-2024
R&B,INFORMATION TECHNOLOGY,SUPPLIES AND SERVICES,TELEPHONES (OFFICE),4481,ZEN INTERNET LTD,20/4/2023 00:00:00,273135,31.32,ZE0007,ZEN INTERNET LTD,04/01/2023 00:00,30/4/2023 00:00:00,P01-2024
R&B,INFORMATION TECHNOLOGY,SUPPLIES AND SERVICES,TELEPHONES (OFFICE),4481,ZEN INTERNET LTD,30/4/2023 00:00:00,273544,29.5,ZE0007,ZEN INTERNET LTD,04/01/2023 00:00,30/4/2023 00:00:00,P01-2024
R&B,INFORMATION TECHNOLOGY,SUPPLIES AND SERVICES,TELEPHONES (MOBILE),4484,VODAFONE  LIMITED (CORPORATE),30/4/2023 00:00:00,273427,858,VO0010,VODAFONE  LIMITED (CORPORATE),04/01/2023 00:00,30/4/2023 00:00:00,P01-2024
P&V,SPORT AND LEISURE,SUPPLIES AND SERVICES,HOSPITALITY,4505,P121440-SERVICE-Refreshments Tem away day 13/4/23,04/03/2023 00:00,272597,576,CH0766,CHANGE PLEASE CIC,04/01/2023 00:00,30/4/2023 00:00:00,P01-2024
,LEE VALLEY CAMPSITE,SUPPLIES AND SERVICES,MARKETING,4603,P121459-SERVICE-Caravan Camping 23/24,04/06/2023 00:00,272723,216.16,AA0090,AA MEDIA LIMITED,04/01/2023 00:00,30/4/2023 00:00:00,P01-2024
,LEE VALLEY CAMPSITE,SUPPLIES AND SERVICES,MARKETING,4603,P121518-SERVICE-SC A5 Flyers WiFi,25/4/2023 00:00:00,272986,19.75,SO0582,SOLOPRESS,04/01/2023 00:00,30/4/2023 00:00:00,P01-2024
,LEE VALLEY CAMPSITE,SUPPLIES AND SERVICES,MARKETING,4603,P121518-SERVICE-DW A5 Flyers WiFi,25/4/2023 00:00:00,272986,19.74,SO0582,SOLOPRESS,04/01/2023 00:00,30/4/2023 00:00:00,P01-2024
,LEE VALLEY CAMPSITE,SUPPLIES AND SERVICES,MARKETING,4603,P121527-SERVICE-SA A1 Wifi Posters,25/4/2023 00:00:00,273151,45,MA0167,MARTIN DANNELL & CO LTD,04/01/2023 00:00,30/4/2023 00:00:00,P01-2024
,LEE VALLEY CAMPSITE,SUPPLIES AND SERVICES,MARKETING,4603,P121606-SERVICE-Accomodation sanitise stickers x1000,20/4/2023 00:00:00,273237,320,SL0528,SLAM SIGNS LTD,04/01/2023 00:00,30/4/2023 00:00:00,P01-2024
,LEE VALLEY CAMPSITE,SUPPLIES AND SERVICES,MARKETING,4603,P121606-SERVICE-delivery,20/4/2023 00:00:00,273237,10,SL0528,SLAM SIGNS LTD,04/01/2023 00:00,30/4/2023 00:00:00,P01-2024
,LEE VALLEY CARAVAN PARK,SUPPLIES AND SERVICES,MARKETING,4603,P121455-SERVICE-Camping & Caravan Member Renewal,04/06/2023 00:00,272768,216.16,AA0090,AA MEDIA LIMITED,04/01/2023 00:00,30/4/2023 00:00:00,P01-2024
,LEE VALLEY CARAVAN PARK,SUPPLIES AND SERVICES,MARKETING,4603,P121527-SERVICE-DW A1 WiFi Posters,25/4/2023 00:00:00,273151,45,MA0167,MARTIN DANNELL & CO LTD,04/01/2023 00:00,30/4/2023 00:00:00,P01-2024
P&V,YOUTH AND SCHOOLS,SUPPLIES AND SERVICES,MARKETING,4603,P121781-SERVICE-Advert - Plan my School Trip,30/4/2023 00:00:00,273530,350,BE0617,BEST WEB JOBS LTD,04/01/2023 00:00,30/4/2023 00:00:00,P01-2024
P&V,RIVER LEE COUNTRY PARK,SUPPLIES AND SERVICES,MARKETING,4603,"P121454-SERVICE-ID Cards, Holders & Lanyards",04/06/2023 00:00,272798,144.75,ED0343,THE EDGE (SYSTEMS) LTD,04/01/2023 00:00,30/4/2023 00:00:00,P01-2024
P&V,ALMOST WILD CAMPSITE,SUPPLIES AND SERVICES,MARKETING,4603,P121656-SERVICE-Advertising Almost Willd,20/4/2023 00:00:00,273165,89.99,UK0025,UK CAMPSITE CO UK,04/01/2023 00:00,30/4/2023 00:00:00,P01-2024
,LV LEISURE CENTRE CAMPSITE,SUPPLIES AND SERVICES,MARKETING,4603,P121456-SERVICE-AA Membership renewal,04/06/2023 00:00,272767,216.16,AA0090,AA MEDIA LIMITED,04/01/2023 00:00,30/4/2023 00:00:00,P01-2024
R&B,FINANCE & RESOURCES MANAGEMENT,SUPPLIES AND SERVICES,DEBT RECOVERY FEES,4646,P121343-SERVICE-DEBT RECOVERY FEES 2023/2024,25/4/2023 00:00:00,273338,291.45,LE0069,LEGAL RECOVERIES AND COLLECTIONS LIMITED,04/01/2023 00:00,30/4/2023 00:00:00,P01-2024
R&B,FINANCE & RESOURCES MANAGEMENT,SUPPLIES AND SERVICES,DEBT RECOVERY FEES,4646,LEGAL RECOVERIES AND COLLECTIO,25/4/2023 00:00:00,273338,176.45,LE0069,LEGAL RECOVERIES AND COLLECTIONS LIMITED,04/01/2023 00:00,30/4/2023 00:00:00,P01-2024
R&B,FINANCE & RESOURCES MANAGEMENT,SUPPLIES AND SERVICES,DEBT RECOVERY FEES,4646,LEGAL RECOVERIES AND COLLECTIO,25/4/2023 00:00:00,273338,115,LE0069,LEGAL RECOVERIES AND COLLECTIONS LIMITED,04/01/2023 00:00,30/4/2023 00:00:00,P01-2024
R&B,FINANCE & RESOURCES MANAGEMENT,SUPPLIES AND SERVICES,DEBT RECOVERY FEES,4646,LEGAL RECOVERIES AND COLLECTIO,25/4/2023 00:00:00,273338,-291.45,LE0069,LEGAL RECOVERIES AND COLLECTIONS LIMITED,04/01/2023 00:00,30/4/2023 00:00:00,P01-2024
P&V,SOUTH AREA RANGERS,SUPPLIES AND SERVICES,SECURITY,4650,P121522-SERVICE-Additional Security at Coppermill,17/4/2023 00:00:00,273030,912,PA0059,PARKGUARD LTD,04/01/2023 00:00,30/4/2023 00:00:00,P01-2024
,LV LEISURE CENTRE CAMPSITE,SUPPLIES AND SERVICES,SECURITY,4650,P121305-SERVICE-Platinum maintenance contract,04/01/2023 00:00,272059,3400,RV0035,RVTV SECURITY GROUP LTD,04/01/2023 00:00,30/4/2023 00:00:00,P01-2024
,LV LEISURE CENTRE CAMPSITE,SUPPLIES AND SERVICES,SECURITY,4650,P121692-SERVICE-Security on-site 14th-15th April 2023,25/4/2023 00:00:00,273343,680,AH0449,MR HUMZAH AHMED,04/01/2023 00:00,30/4/2023 00:00:00,P01-2024
,LEE VALLEY CARAVAN PARK,SUPPLIES AND SERVICES,ENTERTAINMENT & OTHER LICENCES,4711,P121540-SERVICE-Annual premises licence,04/11/2023 00:00,272486,70,BR0016,BOROUGH OF BROXBOURNE,04/01/2023 00:00,30/4/2023 00:00:00,P01-2024
P&V,MYDDLETON HSE HERITAGE CENTRE,SUPPLIES AND SERVICES,NET CATERING PURCHASES,4777,BIDFOOD,04/12/2023 00:00,272947,-227.86,360001,BIDFOOD,04/01/2023 00:00,30/4/2023 00:00:00,P01-2024
P&V,MYDDLETON HSE HERITAGE CENTRE,SUPPLIES AND SERVICES,NET CATERING PURCHASES,4777,BIDFOOD,04/12/2023 00:00,272947,1.59,360001,BIDFOOD,04/01/2023 00:00,30/4/2023 00:00:00,P01-2024
P&V,MYDDLETON HSE HERITAGE CENTRE,SUPPLIES AND SERVICES,NET CATERING PURCHASES,4777,BIDFOOD,04/12/2023 00:00,272947,226.27,360001,BIDFOOD,04/01/2023 00:00,30/4/2023 00:00:00,P01-2024
P&V,MYDDLETON HSE HERITAGE CENTRE,SUPPLIES AND SERVICES,NET CATERING PURCHASES,4777,P121477-SERVICE-food/drink order april 23,04/12/2023 00:00,272947,902.33,360001,BIDFOOD,04/01/2023 00:00,30/4/2023 00:00:00,P01-2024
P&V,MYDDLETON HSE HERITAGE CENTRE,SUPPLIES AND SERVICES,NET CATERING PURCHASES,4777,P121532-SERVICE-FOOD/DRINKS 07/04/2023,04/12/2023 00:00,272947,227.86,360001,BIDFOOD,04/01/2023 00:00,30/4/2023 00:00:00,P01-2024
P&V,MYDDLETON HSE HERITAGE CENTRE,SUPPLIES AND SERVICES,NET CATERING PURCHASES,4777,P121477-SERVICE-food/drink order april 23,04/12/2023 00:00,272948,-24.86,360001,BIDFOOD,04/01/2023 00:00,30/4/2023 00:00:00,P01-2024
P&V,MYDDLETON HSE HERITAGE CENTRE,SUPPLIES AND SERVICES,NET CATERING PURCHASES,4777,P121477-SERVICE-food/drink order april 23,04/12/2023 00:00,272950,24.86,360001,BIDFOOD,04/01/2023 00:00,30/4/2023 00:00:00,P01-2024
P&V,MYDDLETON HSE HERITAGE CENTRE,SUPPLIES AND SERVICES,NET CATERING PURCHASES,4777,P121532-SERVICE-FOOD/DRINKS 07/04/2023,04/12/2023 00:00,272950,252.12,360001,BIDFOOD,04/01/2023 00:00,30/4/2023 00:00:00,P01-2024
P&V,MYDDLETON HSE HERITAGE CENTRE,SUPPLIES AND SERVICES,NET CATERING PURCHASES,4777,BIDFOOD,04/12/2023 00:00,272950,-252.12,360001,BIDFOOD,04/01/2023 00:00,30/4/2023 00:00:00,P01-2024
P&V,MYDDLETON HSE HERITAGE CENTRE,SUPPLIES AND SERVICES,NET CATERING PURCHASES,4777,BIDFOOD,04/12/2023 00:00,272950,46.51,360001,BIDFOOD,04/01/2023 00:00,30/4/2023 00:00:00,P01-2024
P&V,MYDDLETON HSE HERITAGE CENTRE,SUPPLIES AND SERVICES,NET CATERING PURCHASES,4777,BIDFOOD,04/12/2023 00:00,272950,205.61,360001,BIDFOOD,04/01/2023 00:00,30/4/2023 00:00:00,P01-2024
,LEE VALLEY MARINA SPRINGFIELD,SUPPLIES AND SERVICES,TRADING AC - EXTERNAL PURCHASE,4875,P121483-SERVICE-Chandlery Stock - various,17/4/2023 00:00:00,272817,857.93,MI0200,MIDLAND CHANDLERS LIMITED,04/01/2023 00:00,30/4/2023 00:00:00,P01-2024
,LEE VALLEY MARINA SPRINGFIELD,SUPPLIES AND SERVICES,TRADING AC - EXTERNAL PURCHASE,4875,P121595-SERVICE-Electrical and engineering stock,18/4/2023 00:00:00,273143,265.48,AS0036,ASAP SUPPLIES,04/01/2023 00:00,30/4/2023 00:00:00,P01-2024
,LEE VALLEY MARINA SPRINGFIELD,SUPPLIES AND SERVICES,TRADING AC - EXTERNAL PURCHASE,4875,P121600-SERVICE-Gas and plumbing items,20/4/2023 00:00:00,273146,454.17,AQ0033,AQUAFAX LIMITED,04/01/2023 00:00,30/4/2023 00:00:00,P01-2024
,LEE VALLEY MARINA SPRINGFIELD,SUPPLIES AND SERVICES,TRADING AC - EXTERNAL PURCHASE,4875,MIDLAND CHANDLERS LIMITED,20/4/2023 00:00:00,273211,6.45,MI0200,MIDLAND CHANDLERS LIMITED,04/01/2023 00:00,30/4/2023 00:00:00,P01-2024
,LEE VALLEY MARINA SPRINGFIELD,SUPPLIES AND SERVICES,TRADING AC - EXTERNAL PURCHASE,4875,MIDLAND CHANDLERS LIMITED,20/4/2023 00:00:00,273211,535.61,MI0200,MIDLAND CHANDLERS LIMITED,04/01/2023 00:00,30/4/2023 00:00:00,P01-2024
,LEE VALLEY MARINA SPRINGFIELD,SUPPLIES AND SERVICES,TRADING AC - EXTERNAL PURCHASE,4875,MIDLAND CHANDLERS LIMITED,20/4/2023 00:00:00,273211,-542.06,MI0200,MIDLAND CHANDLERS LIMITED,04/01/2023 00:00,30/4/2023 00:00:00,P01-2024
,LEE VALLEY MARINA SPRINGFIELD,SUPPLIES AND SERVICES,TRADING AC - EXTERNAL PURCHASE,4875,P121615-SERVICE-Various items for chandlery,20/4/2023 00:00:00,273211,542.06,MI0200,MIDLAND CHANDLERS LIMITED,04/01/2023 00:00,30/4/2023 00:00:00,P01-2024
,LEE VALLEY MARINA SPRINGFIELD,SUPPLIES AND SERVICES,TRADING AC - EXTERNAL PURCHASE,4875,P121600-SERVICE-Gas and plumbing items,20/4/2023 00:00:00,273219,-3.26,AQ0033,AQUAFAX LIMITED,04/01/2023 00:00,30/4/2023 00:00:00,P01-2024
,LEE VALLEY MARINA SPRINGFIELD,SUPPLIES AND SERVICES,TRADING AC - EXTERNAL PURCHASE,4875,P121600-SERVICE-Gas and plumbing items,20/4/2023 00:00:00,273221,21.96,AQ0033,AQUAFAX LIMITED,04/01/2023 00:00,30/4/2023 00:00:00,P01-2024
,LEE VALLEY MARINA SPRINGFIELD,SUPPLIES AND SERVICES,TRADING AC - EXTERNAL PURCHASE,4875,P121512-SERVICE-4 x Buffalo Board,18/4/2023 00:00:00,273226,468,RO0323,E ROBERT TIMBER LTD,04/01/2023 00:00,30/4/2023 00:00:00,P01-2024
,LEE VALLEY MARINA SPRINGFIELD,SUPPLIES AND SERVICES,TRADING AC - EXTERNAL PURCHASE,4875,P121512-SERVICE-2 x 9mm Ply sheets,18/4/2023 00:00:00,273226,55,RO0323,E ROBERT TIMBER LTD,04/01/2023 00:00,30/4/2023 00:00:00,P01-2024
,LEE VALLEY MARINA SPRINGFIELD,SUPPLIES AND SERVICES,TRADING AC - EXTERNAL PURCHASE,4875,P121680-SERVICE-Chandlery Stock - various,25/4/2023 00:00:00,273352,329.7,MI0200,MIDLAND CHANDLERS LIMITED,04/01/2023 00:00,30/4/2023 00:00:00,P01-2024
,LEE VALLEY MARINA SPRINGFIELD,SUPPLIES AND SERVICES,TRADING AC - EXTERNAL PURCHASE,4875,P121690-SERVICE-Anchor Chain for customer,25/4/2023 00:00:00,273353,66.98,MI0200,MIDLAND CHANDLERS LIMITED,04/01/2023 00:00,30/4/2023 00:00:00,P01-2024
,LEE VALLEY MARINA SPRINGFIELD,SUPPLIES AND SERVICES,TRADING AC - EXTERNAL PURCHASE,4875,P121680-SERVICE-Chandlery Stock - various,25/4/2023 00:00:00,273390,18.78,MI0200,MIDLAND CHANDLERS LIMITED,04/01/2023 00:00,30/4/2023 00:00:00,P01-2024
,LEE VALLEY MARINA SPRINGFIELD,SUPPLIES AND SERVICES,TRADING AC - EXTERNAL PURCHASE,4875,P121712-SERVICE-Electrical and gas supplies,26/4/2023 00:00:00,273396,280.22,AQ0033,AQUAFAX LIMITED,04/01/2023 00:00,30/4/2023 00:00:00,P01-2024
,LEE VALLEY MARINA SPRINGFIELD,SUPPLIES AND SERVICES,TRADING AC - EXTERNAL PURCHASE,4875,P121744-SERVICE-Paint,30/4/2023 00:00:00,273528,840.33,CR0651,CRAFTMASTER PAINTS,04/01/2023 00:00,30/4/2023 00:00:00,P01-2024
,STANSTEAD RECHARGEABLE WORKS,SUPPLIES AND SERVICES,TRADING AC - EXTERNAL PURCHASE,4875,P121481-SERVICE-chandlery stock,17/4/2023 00:00:00,272753,956.29,AQ0033,AQUAFAX LIMITED,04/01/2023 00:00,30/4/2023 00:00:00,P01-2024
,STANSTEAD RECHARGEABLE WORKS,SUPPLIES AND SERVICES,TRADING AC - EXTERNAL PURCHASE,4875,P121476-SERVICE-chandlery stock,17/4/2023 00:00:00,272793,152.46,MI0200,MIDLAND CHANDLERS LIMITED,04/01/2023 00:00,30/4/2023 00:00:00,P01-2024
,STANSTEAD RECHARGEABLE WORKS,SUPPLIES AND SERVICES,TRADING AC - EXTERNAL PURCHASE,4875,P121482-SERVICE-chandlery stock,17/4/2023 00:00:00,272795,135.24,AS0036,ASAP SUPPLIES,04/01/2023 00:00,30/4/2023 00:00:00,P01-2024
,STANSTEAD RECHARGEABLE WORKS,SUPPLIES AND SERVICES,TRADING AC - EXTERNAL PURCHASE,4875,P121494-SERVICE-paint,17/4/2023 00:00:00,272816,770.62,CR0651,CRAFTMASTER PAINTS,04/01/2023 00:00,30/4/2023 00:00:00,P01-2024
,STANSTEAD RECHARGEABLE WORKS,SUPPLIES AND SERVICES,TRADING AC - EXTERNAL PURCHASE,4875,P121476-SERVICE-chandlery stock,17/4/2023 00:00:00,272818,1913.93,MI0200,MIDLAND CHANDLERS LIMITED,04/01/2023 00:00,30/4/2023 00:00:00,P01-2024
,STANSTEAD RECHARGEABLE WORKS,SUPPLIES AND SERVICES,TRADING AC - EXTERNAL PURCHASE,4875,P121476-SERVICE-chandlery stock,17/4/2023 00:00:00,272912,14.78,MI0200,MIDLAND CHANDLERS LIMITED,04/01/2023 00:00,30/4/2023 00:00:00,P01-2024
,STANSTEAD RECHARGEABLE WORKS,SUPPLIES AND SERVICES,TRADING AC - EXTERNAL PURCHASE,4875,P121481-SERVICE-chandlery stock,17/4/2023 00:00:00,272913,34.36,AQ0033,AQUAFAX LIMITED,04/01/2023 00:00,30/4/2023 00:00:00,P01-2024
,STANSTEAD RECHARGEABLE WORKS,SUPPLIES AND SERVICES,TRADING AC - EXTERNAL PURCHASE,4875,P121484-SERVICE-drinks and ice cream,17/4/2023 00:00:00,272949,443.83,360001,BIDFOOD,04/01/2023 00:00,30/4/2023 00:00:00,P01-2024
,STANSTEAD RECHARGEABLE WORKS,SUPPLIES AND SERVICES,TRADING AC - EXTERNAL PURCHASE,4875,P121473-SERVICE-red diesel @ .7650 per ltr,17/4/2023 00:00:00,273024,1683,TE0052,CERTAS ENERGY UK LIMITED,04/01/2023 00:00,30/4/2023 00:00:00,P01-2024
,STANSTEAD RECHARGEABLE WORKS,SUPPLIES AND SERVICES,TRADING AC - EXTERNAL PURCHASE,4875,P121487-SERVICE-ropes,26/4/2023 00:00:00,273142,590.63,DS0201,DSM GROUP,04/01/2023 00:00,30/4/2023 00:00:00,P01-2024
,STANSTEAD RECHARGEABLE WORKS,SUPPLIES AND SERVICES,TRADING AC - EXTERNAL PURCHASE,4875,P121599-SERVICE-engine filters,26/4/2023 00:00:00,273144,35.33,AS0036,ASAP SUPPLIES,04/01/2023 00:00,30/4/2023 00:00:00,P01-2024
,STANSTEAD RECHARGEABLE WORKS,SUPPLIES AND SERVICES,TRADING AC - EXTERNAL PURCHASE,4875,P121481-SERVICE-chandlery stock,26/4/2023 00:00:00,273145,23.2,AQ0033,AQUAFAX LIMITED,04/01/2023 00:00,30/4/2023 00:00:00,P01-2024
,STANSTEAD RECHARGEABLE WORKS,SUPPLIES AND SERVICES,TRADING AC - EXTERNAL PURCHASE,4875,P121633-SERVICE-chandlery stock,26/4/2023 00:00:00,273209,409.54,AQ0033,AQUAFAX LIMITED,04/01/2023 00:00,30/4/2023 00:00:00,P01-2024
,STANSTEAD RECHARGEABLE WORKS,SUPPLIES AND SERVICES,TRADING AC - EXTERNAL PURCHASE,4875,P121623-SERVICE-chandlery stock,26/4/2023 00:00:00,273210,981.06,MI0200,MIDLAND CHANDLERS LIMITED,04/01/2023 00:00,30/4/2023 00:00:00,P01-2024
,STANSTEAD RECHARGEABLE WORKS,SUPPLIES AND SERVICES,TRADING AC - EXTERNAL PURCHASE,4875,P121641-SERVICE-chandlery stock,26/4/2023 00:00:00,273220,149,AQ0033,AQUAFAX LIMITED,04/01/2023 00:00,30/4/2023 00:00:00,P01-2024
,STANSTEAD RECHARGEABLE WORKS,SUPPLIES AND SERVICES,TRADING AC - EXTERNAL PURCHASE,4875,P121476-SERVICE-chandlery stock,26/4/2023 00:00:00,273222,14.78,MI0200,MIDLAND CHANDLERS LIMITED,04/01/2023 00:00,30/4/2023 00:00:00,P01-2024
,STANSTEAD RECHARGEABLE WORKS,SUPPLIES AND SERVICES,TRADING AC - EXTERNAL PURCHASE,4875,P121632-SERVICE-paint,26/4/2023 00:00:00,273227,368.63,CR0651,CRAFTMASTER PAINTS,04/01/2023 00:00,30/4/2023 00:00:00,P01-2024
,STANSTEAD RECHARGEABLE WORKS,SUPPLIES AND SERVICES,TRADING AC - EXTERNAL PURCHASE,4875,P121664-SERVICE-PAINT,26/4/2023 00:00:00,273238,47.22,CR0651,CRAFTMASTER PAINTS,04/01/2023 00:00,30/4/2023 00:00:00,P01-2024
,STANSTEAD RECHARGEABLE WORKS,SUPPLIES AND SERVICES,TRADING AC - EXTERNAL PURCHASE,4875,P121638-SERVICE-extra amount for invoice,26/4/2023 00:00:00,273313,0.01,CE0510,CENTURION EUROPE LIMITED,04/01/2023 00:00,30/4/2023 00:00:00,P01-2024
,STANSTEAD RECHARGEABLE WORKS,SUPPLIES AND SERVICES,TRADING AC - EXTERNAL PURCHASE,4875,P121638-SERVICE-chandlerystock,26/4/2023 00:00:00,273313,297.04,CE0510,CENTURION EUROPE LIMITED,04/01/2023 00:00,30/4/2023 00:00:00,P01-2024
,STANSTEAD RECHARGEABLE WORKS,SUPPLIES AND SERVICES,TRADING AC - EXTERNAL PURCHASE,4875,P121641-SERVICE-chandlery stock,26/4/2023 00:00:00,273320,85.08,AQ0033,AQUAFAX LIMITED,04/01/2023 00:00,30/4/2023 00:00:00,P01-2024
,STANSTEAD RECHARGEABLE WORKS,SUPPLIES AND SERVICES,TRADING AC - EXTERNAL PURCHASE,4875,P121663-SERVICE-chandlery paint,26/4/2023 00:00:00,273335,192.06,MI0200,MIDLAND CHANDLERS LIMITED,04/01/2023 00:00,30/4/2023 00:00:00,P01-2024
,STANSTEAD RECHARGEABLE WORKS,SUPPLIES AND SERVICES,TRADING AC - EXTERNAL PURCHASE,4875,P121623-SERVICE-chandlery stock,26/4/2023 00:00:00,273336,21.64,MI0200,MIDLAND CHANDLERS LIMITED,04/01/2023 00:00,30/4/2023 00:00:00,P01-2024
,STANSTEAD RECHARGEABLE WORKS,SUPPLIES AND SERVICES,TRADING AC - EXTERNAL PURCHASE,4875,P121585-SERVICE-RED DIESEL @ .7430 PER LTR,26/4/2023 00:00:00,273346,1633.86,SP0543,SPEEDY FUELS LIMITED,04/01/2023 00:00,30/4/2023 00:00:00,P01-2024
,STANSTEAD RECHARGEABLE WORKS,SUPPLIES AND SERVICES,TRADING AC - EXTERNAL PURCHASE,4875,P121663-SERVICE-chandlery paint,26/4/2023 00:00:00,273351,31.72,MI0200,MIDLAND CHANDLERS LIMITED,04/01/2023 00:00,30/4/2023 00:00:00,P01-2024
,STANSTEAD RECHARGEABLE WORKS,SUPPLIES AND SERVICES,TRADING AC - EXTERNAL PURCHASE,4875,P121640-SERVICE-chandlery stock,26/4/2023 00:00:00,273393,203.34,CA0660,CALFIRE SPARELINE LIMITED,04/01/2023 00:00,30/4/2023 00:00:00,P01-2024
,LEE VALLEY CARAVAN PARK,SUPPLIES AND SERVICES,TRADING AC - EXTERNAL PURCHASE,4875,P121554-SERVICE-2 Pallets of logs and 1 x Kinderlin,17/4/2023 00:00:00,273035,1029.63,LO0473,LOGS DIRECT LTD,04/01/2023 00:00,30/4/2023 00:00:00,P01-2024
,LEE VALLEY CARAVAN PARK,SUPPLIES AND SERVICES,TRADING AC - EXTERNAL PURCHASE,4875,P121554-SERVICE-2 Pallets of logs and 1 x Kinderlin,30/4/2023 00:00:00,273386,668.64,LO0473,LOGS DIRECT LTD,04/01/2023 00:00,30/4/2023 00:00:00,P01-2024
P&V,MYDDLETON HSE HERITAGE CENTRE,SUPPLIES AND SERVICES,TRADING AC - EXTERNAL PURCHASE,4875,P121575-SERVICE-plant sale april 23,25/4/2023 00:00:00,273213,570.5,CH0718,CHAPEL COTTAGE PLANTS LIMITED,04/01/2023 00:00,30/4/2023 00:00:00,P01-2024
,LEE VALLEY CAMPSITE,SUPPLIES AND SERVICES,BOTTLED GAS,4877,P121611-SERVICE-Stock Gas cannisters,30/4/2023 00:00:00,273392,877.39,FL0147,FLOGAS BRITAIN LIMITED,04/01/2023 00:00,30/4/2023 00:00:00,P01-2024
CEO,COMMERCIAL ACCOMMODATION,SUPPLIES AND SERVICES,OTHER EXPENSES,4899,P121556-SERVICE-Land Registry Fees,25/4/2023 00:00:00,273160,30,HM0032,HM LAND REGISTRY,04/01/2023 00:00,30/4/2023 00:00:00,P01-2024
CEO,COMMERCIAL ACCOMMODATION,SUPPLIES AND SERVICES,OTHER EXPENSES,4899,P121556-SERVICE-Land Registry Fees,25/4/2023 00:00:00,273367,21,HM0032,HM LAND REGISTRY,04/01/2023 00:00,30/4/2023 00:00:00,P01-2024
,LEE VALLEY MARINA SPRINGFIELD,SUPPLIES AND SERVICES,OTHER EXPENSES,4899,P121722-SERVICE-Annual Stocktaking 2023,25/4/2023 00:00:00,273223,653,VE0038,VENNERS LTD,04/01/2023 00:00,30/4/2023 00:00:00,P01-2024
P&V,LEE VALLEY FARM HOLYFIELDHALL,SUPPLIES AND SERVICES,OTHER EXPENSES,4899,P121576-SERVICE-1 x Vinyl Banner (200x81cm) with Eyelets from,25/4/2023 00:00:00,273150,35.64,MA0167,MARTIN DANNELL & CO LTD,04/01/2023 00:00,30/4/2023 00:00:00,P01-2024
P&V,COMMUNITY ACCESS FUND,SUPPLIES AND SERVICES,OTHER EXPENSES,4899,P121151-SERVICE-Views License 1/4/23 to 31/3/24,04/06/2023 00:00,272774,1155,SU0605,SUBSTANCE,04/01/2023 00:00,30/4/2023 00:00:00,P01-2024
P&V,SOUTH AREA RANGERS,S106 EXPENDITURE (REVENUE),S106 EXPENDITURE (REVENUE),4985,P121525-SERVICE-Traditional Wildflower Seed - 1Kg,18/4/2023 00:00:00,273028,133.33,BO0630,BOSTON SEEDS LIMITED,04/01/2023 00:00,30/4/2023 00:00:00,P01-2024
P&V,SOUTH AREA RANGERS,S106 EXPENDITURE (REVENUE),S106 EXPENDITURE (REVENUE),4985,P121525-SERVICE-Delivery,18/4/2023 00:00:00,273028,4.99,BO0630,BOSTON SEEDS LIMITED,04/01/2023 00:00,30/4/2023 00:00:00,P01-2024
P&V,SOUTH AREA RANGERS,S106 EXPENDITURE (REVENUE),S106 EXPENDITURE (REVENUE),4985,P121525-SERVICE-Traditional Wildflower Meadow Seed - 5Kg,18/4/2023 00:00:00,273028,937.5,BO0630,BOSTON SEEDS LIMITED,04/01/2023 00:00,30/4/2023 00:00:00,P01-2024
P&V,SOUTH AREA RANGERS,S106 EXPENDITURE (REVENUE),S106 EXPENDITURE (REVENUE),4985,P121525-SERVICE-Traditional Wildflower Meadow Seed - 5Kg,18/4/2023 00:00:00,273162,-750,BO0630,BOSTON SEEDS LIMITED,04/01/2023 00:00,30/4/2023 00:00:00,P01-2024
P&V,"ASSET PROTECTION, MAINT, DEVEL",CAPITAL EXPENDITURE,CAPITAL EXPENDITURE,4990,P121791-SERVICE-Works as per schedule,30/4/2023 00:00:00,272269,18805.6,PE0379,PERFECT CIRCLE JV LTD,04/01/2023 00:00,30/4/2023 00:00:00,P01-2024
P&V,"ASSET PROTECTION, MAINT, DEVEL",CAPITAL EXPENDITURE,CAPITAL EXPENDITURE,4990,P121792-SERVICE-Middlesex filter beds sluice design,30/4/2023 00:00:00,272357,10788.95,PE0379,PERFECT CIRCLE JV LTD,04/01/2023 00:00,30/4/2023 00:00:00,P01-2024
P&V,"ASSET PROTECTION, MAINT, DEVEL",CAPITAL EXPENDITURE,CAPITAL EXPENDITURE,4990,P121685-SERVICE-Velo - CCTV rental 1/4/23 - 30/6/23,26/4/2023 00:00:00,272791,12262.74,ST0642,SECURITAS TECHNOLOGY LIMITED(frmly Stanley S),04/01/2023 00:00,30/4/2023 00:00:00,P01-2024
P&V,"ASSET PROTECTION, MAINT, DEVEL",CAPITAL EXPENDITURE,CAPITAL EXPENDITURE,4990,P121274-SERVICE-Masonry Repairs at Waltham Abbey Gardens,04/11/2023 00:00,272814,7327.96,BA0595,BAKERS OF DANBURY HERITAGE LTD,04/01/2023 00:00,30/4/2023 00:00:00,P01-2024
P&V,"ASSET PROTECTION, MAINT, DEVEL",CAPITAL EXPENDITURE,CAPITAL EXPENDITURE,4990,P118671-SERVICE-Repairs to be carried out to legacy pump 3,20/4/2023 00:00:00,273005,24362.85,CL0039,XYLEM WATER SOLUTIONS UK  LIMITED,04/01/2023 00:00,30/4/2023 00:00:00,P01-2024
P&V,"ASSET PROTECTION, MAINT, DEVEL",CAPITAL EXPENDITURE,CAPITAL EXPENDITURE,4990,P121683-SERVICE-LVAC - running track,20/4/2023 00:00:00,273029,5698.55,DY0290,DYNAMIK SPORT SURFACE LTD,04/01/2023 00:00,30/4/2023 00:00:00,P01-2024
P&V,"ASSET PROTECTION, MAINT, DEVEL",CAPITAL EXPENDITURE,CAPITAL EXPENDITURE,4990,P121673-SERVICE-Water Inspection - Holyfield Farm Annexe,25/4/2023 00:00:00,273355,70,GI0137,R & P GIBBS LIMITED,04/01/2023 00:00,30/4/2023 00:00:00,P01-2024
P&V,"ASSET PROTECTION, MAINT, DEVEL",CAPITAL EXPENDITURE,CAPITAL EXPENDITURE,4990,P120893-SERVICE-Dobbs Weir H&S works 21 m2,25/4/2023 00:00:00,273369,2341.08,HE0297,HENDERSON & TAYLOR (PUBLIC WORKS LIMITED),04/01/2023 00:00,30/4/2023 00:00:00,P01-2024
P&V,"ASSET PROTECTION, MAINT, DEVEL",CAPITAL EXPENDITURE,CAPITAL EXPENDITURE,4990,P120894-SERVICE-Fishers Green Access 9 m 2,25/4/2023 00:00:00,273370,836.1,HE0297,HENDERSON & TAYLOR (PUBLIC WORKS LIMITED),04/01/2023 00:00,30/4/2023 00:00:00,P01-2024
P&V,"ASSET PROTECTION, MAINT, DEVEL",CAPITAL EXPENDITURE,CAPITAL EXPENDITURE,4990,P120895-SERVICE-Fishers Green Island 52.5 m2,25/4/2023 00:00:00,273371,4877.25,HE0297,HENDERSON & TAYLOR (PUBLIC WORKS LIMITED),04/01/2023 00:00,30/4/2023 00:00:00,P01-2024
P&V,"ASSET PROTECTION, MAINT, DEVEL",CAPITAL EXPENDITURE,CAPITAL EXPENDITURE,4990,P120896-SERVICE-Hot Joint over banding dayworks,25/4/2023 00:00:00,273372,1925,HE0297,HENDERSON & TAYLOR (PUBLIC WORKS LIMITED),04/01/2023 00:00,30/4/2023 00:00:00,P01-2024
P&V,"ASSET PROTECTION, MAINT, DEVEL",CAPITAL EXPENDITURE,CAPITAL EXPENDITURE,4990,P120898-SERVICE-Ashley Pit quote 2 60 m2,25/4/2023 00:00:00,273373,9538.8,HE0297,HENDERSON & TAYLOR (PUBLIC WORKS LIMITED),04/01/2023 00:00,30/4/2023 00:00:00,P01-2024
P&V,"ASSET PROTECTION, MAINT, DEVEL",CAPITAL EXPENDITURE,CAPITAL EXPENDITURE,4990,P120899-SERVICE-Broxbourne boat centre 5.6 m2,25/4/2023 00:00:00,273374,520.24,HE0297,HENDERSON & TAYLOR (PUBLIC WORKS LIMITED),04/01/2023 00:00,30/4/2023 00:00:00,P01-2024
P&V,"ASSET PROTECTION, MAINT, DEVEL",CAPITAL EXPENDITURE,CAPITAL EXPENDITURE,4990,P120900-SERVICE-Broxbourne Riverside 12.2 m2,25/4/2023 00:00:00,273375,1133.38,HE0297,HENDERSON & TAYLOR (PUBLIC WORKS LIMITED),04/01/2023 00:00,30/4/2023 00:00:00,P01-2024
P&V,"ASSET PROTECTION, MAINT, DEVEL",CAPITAL EXPENDITURE,CAPITAL EXPENDITURE,4990,P120902-SERVICE-Clayton Hill Quote 2 21 m2,25/4/2023 00:00:00,273376,6553.96,HE0297,HENDERSON & TAYLOR (PUBLIC WORKS LIMITED),04/01/2023 00:00,30/4/2023 00:00:00,P01-2024
P&V,"ASSET PROTECTION, MAINT, DEVEL",CAPITAL EXPENDITURE,CAPITAL EXPENDITURE,4990,P118406-SERVICE-Control System Schedule Upgrade at White Wate,30/4/2023 00:00:00,273409,14902,TO0640,TOTAL AUTOMATION AND POWER,04/01/2023 00:00,30/4/2023 00:00:00,P01-2024
P&V,"ASSET PROTECTION, MAINT, DEVEL",CAPITAL EXPENDITURE,CAPITAL EXPENDITURE,4990,P118408-SERVICE-Carry Out the Power Section Upgrades to 8 no,30/4/2023 00:00:00,273410,58140,TO0640,TOTAL AUTOMATION AND POWER,04/01/2023 00:00,30/4/2023 00:00:00,P01-2024
R&B,INFORMATION TECHNOLOGY,CAPITAL EXPENDITURE,CAPITAL EXPENDITURE,4990,P117358-SERVICE-Public WiFi Install for Dobbs Weir,30/4/2023 00:00:00,272710,233.5,RE0354,RENOVOTEC LTD,04/01/2023 00:00,30/4/2023 00:00:00,P01-2024
R&B,INFORMATION TECHNOLOGY,CAPITAL EXPENDITURE,CAPITAL EXPENDITURE,4990,P120925-SERVICE-5ft J PolePlus fixed wall mount for Dobbs & S,30/4/2023 00:00:00,273333,240,RE0354,RENOVOTEC LTD,04/01/2023 00:00,30/4/2023 00:00:00,P01-2024
,LEE VALLEY CAMPSITE,CAPITAL EXPENDITURE,CAPITAL EXPENDITURE,4990,P121637-SERVICE-Duvets,30/4/2023 00:00:00,273206,25.83,AM0406,AMAZON PAYMENTS UK LIMITED,04/01/2023 00:00,30/4/2023 00:00:00,P01-2024
,LEE VALLEY CAMPSITE,CAPITAL EXPENDITURE,CAPITAL EXPENDITURE,4990,P121637-SERVICE-Pillows,30/4/2023 00:00:00,273207,23.04,AM0406,AMAZON PAYMENTS UK LIMITED,04/01/2023 00:00,30/4/2023 00:00:00,P01-2024
,LEE VALLEY CAMPSITE,CAPITAL EXPENDITURE,CAPITAL EXPENDITURE,4990,P121637-SERVICE-Duvets,30/4/2023 00:00:00,273207,36.54,AM0406,AMAZON PAYMENTS UK LIMITED,04/01/2023 00:00,30/4/2023 00:00:00,P01-2024
,LEE VALLEY CAMPSITE,CAPITAL EXPENDITURE,CAPITAL EXPENDITURE,4990,P121637-SERVICE-Pillows,30/4/2023 00:00:00,273208,25.83,AM0406,AMAZON PAYMENTS UK LIMITED,04/01/2023 00:00,30/4/2023 00:00:00,P01-2024
P&V,EAST INDIA DOCK AND BOW CREEK,CAPITAL EXPENDITURE,CAPITAL EXPENDITURE,4990,P117438-SERVICE-East India Dock Basin Works,25/4/2023 00:00:00,273349,14266,AB0265,ABP MARINE ENVIRONMENTAL RESEARCH LTD,04/01/2023 00:00,30/4/2023 00:00:00,P01-2024
,LEE VALLEY ICE CENTRE,CAPITAL EXPENDITURE,CAPITAL EXPENDITURE,4990,P120219-SERVICE-Lee Valley Ice Centre Image,18/4/2023 00:00:00,272911,2562.5,DR0324,ALICE DRUITT,04/01/2023 00:00,30/4/2023 00:00:00,P01-2024
,LEE VALLEY ICE CENTRE,CAPITAL EXPENDITURE,CAPITAL EXPENDITURE,4990,P120716-SERVICE-New Gates at LVIC for access to LVM -  Quote,25/4/2023 00:00:00,273379,8649.5,DE0013,DENNIS SECURITY CENTRE,04/01/2023 00:00,30/4/2023 00:00:00,P01-2024
R&B,HUMAN RESOURCES,THIRD PARTY PAYMENTS,CONSULTANTS (GENERAL),5110,P121331-SERVICE-Vine HR Membership Subs 01/03/23 - 30/09/23,17/4/2023 00:00:00,273038,3000,VI0074,VINE HR LIMITED,04/01/2023 00:00,30/4/2023 00:00:00,P01-2024
P&V,"ASSET PROTECTION, MAINT, DEVEL",THIRD PARTY PAYMENTS,CONSULTANTS (GENERAL),5110,P121515-SERVICE-Air Test -Springfield Marina,17/4/2023 00:00:00,273139,200,LI0432,LIFE ENVIRONMENTAL SERVICES LTD,04/01/2023 00:00,30/4/2023 00:00:00,P01-2024
R&B,INTERNAL AUDIT/HEALTH & SAFETY,THIRD PARTY PAYMENTS,CONSULTANTS (HEALTH & SAFETY),5123,P121430-SERVICE-Annual H&S contract April - October 2023,25/4/2023 00:00:00,273344,11458.33,RI0053,RIGHT DIRECTIONS (MANAGEMENT) LTD,04/01/2023 00:00,30/4/2023 00:00:00,P01-2024
R&B,BALANCE SHEET (AUTHORITY),CREDITORS,EMPLOYEES INCOME TAX,6701,HMRC,17/4/2023 00:00:00,272952,59046.5,HM0368,HMRC,04/01/2023 00:00,30/4/2023 00:00:00,P01-2024
R&B,BALANCE SHEET (AUTHORITY),CREDITORS,EMPLOYEES NATIONAL INSURANCE,6702,HMRC,17/4/2023 00:00:00,272952,26534.9,HM0368,HMRC,04/01/2023 00:00,30/4/2023 00:00:00,P01-2024
R&B,BALANCE SHEET (AUTHORITY),CREDITORS,EMPLOYERS NATIONAL INSURANCE,6704,HMRC,17/4/2023 00:00:00,272952,41646.75,HM0368,HMRC,04/01/2023 00:00,30/4/2023 00:00:00,P01-2024
R&B,BALANCE SHEET (AUTHORITY),CREDITORS,EMPLOYEES PENSION LGPS,6706,LONDON PENSION FUND OPERATIONA,17/4/2023 00:00:00,272953,26181.96,LO0334,LONDON PENSION FUND OPERATIONAL ACCOUNT,04/01/2023 00:00,30/4/2023 00:00:00,P01-2024
R&B,BALANCE SHEET (AUTHORITY),CREDITORS,EMPLOYEES PENSION LGPS,6706,LOCAL GOVERNMENT AVC DEPARTMEN,17/4/2023 00:00:00,272954,125,LO0455,LOCAL GOVERNMENT AVC DEPARTMENT,04/01/2023 00:00,30/4/2023 00:00:00,P01-2024
R&B,BALANCE SHEET (AUTHORITY),CREDITORS,EMPLOYEES PENSION LGPS,6706,reverse comp ref 27953,18/4/2023 00:00:00,273168,-26181.96,LO0334,LONDON PENSION FUND OPERATIONAL ACCOUNT,04/01/2023 00:00,30/4/2023 00:00:00,P01-2024
R&B,BALANCE SHEET (AUTHORITY),CREDITORS,EMPLOYEES PENSION LGPS,6706,EMPLOYEE CONTRIBUTIONS,18/4/2023 00:00:00,273169,26181.96,LO0334,LONDON PENSION FUND OPERATIONAL ACCOUNT,04/01/2023 00:00,30/4/2023 00:00:00,P01-2024
R&B,BALANCE SHEET (AUTHORITY),CREDITORS,EMPLOYERS PENSION LGPS,6707,LONDON PENSION FUND OPERATIONA,17/4/2023 00:00:00,272953,56880.93,LO0334,LONDON PENSION FUND OPERATIONAL ACCOUNT,04/01/2023 00:00,30/4/2023 00:00:00,P01-2024
R&B,BALANCE SHEET (AUTHORITY),CREDITORS,EMPLOYERS PENSION LGPS,6707,reverse comp ref 27953,18/4/2023 00:00:00,273168,-56880.93,LO0334,LONDON PENSION FUND OPERATIONAL ACCOUNT,04/01/2023 00:00,30/4/2023 00:00:00,P01-2024
R&B,BALANCE SHEET (AUTHORITY),CREDITORS,EMPLOYERS PENSION LGPS,6707,EMPLOYER CONTRIBUTIONS,18/4/2023 00:00:00,273169,50140.73,LO0334,LONDON PENSION FUND OPERATIONAL ACCOUNT,04/01/2023 00:00,30/4/2023 00:00:00,P01-2024
R&B,BALANCE SHEET (AUTHORITY),CREDITORS,EMPLOYEES STUDENT LOANS,6709,HMRC,17/4/2023 00:00:00,272952,1023,HM0368,HMRC,04/01/2023 00:00,30/4/2023 00:00:00,P01-2024
R&B,BALANCE SHEET (AUTHORITY),CREDITORS,EMPLOYEES UNION SUBSCRIPTIONS,6711,UNISON Greater London Region,17/4/2023 00:00:00,272955,57,UN0002,UNISON Greater London Region,04/01/2023 00:00,30/4/2023 00:00:00,P01-2024
R&B,BALANCE SHEET (AUTHORITY),CREDITORS,CONSTRUCTION INDUSTRY SCHEME,6721,CAPSER,04/05/2023 00:00,272862,-90,MO0041,CAPSER,04/01/2023 00:00,30/4/2023 00:00:00,P01-2024
R&B,BALANCE SHEET (AUTHORITY),CREDITORS,CONSTRUCTION INDUSTRY SCHEME,6721,PJ GAS UTILITIES LTD,04/05/2023 00:00,272867,-182,PA0348,PJ GAS UTILITIES LTD,04/01/2023 00:00,30/4/2023 00:00:00,P01-2024
R&B,BALANCE SHEET (AUTHORITY),CREDITORS,CONSTRUCTION INDUSTRY SCHEME,6721,CAPSER,04/12/2023 00:00,273100,-150,MO0041,CAPSER,04/01/2023 00:00,30/4/2023 00:00:00,P01-2024
R&B,BALANCE SHEET (AUTHORITY),CREDITORS,CONSTRUCTION INDUSTRY SCHEME,6721,KENDALL & SONS LIMITED,18/4/2023 00:00:00,273273,-1709.98,KE0023,KENDALL & SONS LIMITED,04/01/2023 00:00,30/4/2023 00:00:00,P01-2024
R&B,BALANCE SHEET (AUTHORITY),CA SUSPENSE,RECEIPT/PAYMENT PSEUDO BANK AC,6884,BRITISH GAS TRADING LTD,27/4/2023 00:00:00,273547,1293.07,BR0030,BRITISH GAS TRADING LTD,04/01/2023 00:00,30/4/2023 00:00:00,P01-2024
